{"text_format":"1","workbook":"xlsx","n_sheets":6,"sheets":["FicheJoueurs","Données","Poule de 6","Tours de jeu","Affiche_des_tours","Saisie FFB"],"not_rendered":{"charts":0,"images":2,"macros":1,"external_links":1,"defined_names":176,"comments":2,"pivot_tables":0},"unopened":[],"bounds":{"document_bytes":16777216,"sheet_cells":100000,"rows_first":2000,"rows_last":500,"rows_between":2000,"halvings":0,"cell_chars":16384,"cell_head_chars":4096},"cells_cut":0,"cells_raw":0,"read":"whole","date_system":"1900"}

{"sheet":"FicheJoueurs","index":0,"n_rows":718,"n_cols":4,"rows_kept":718,"cut":false,"hidden":false,"merged":[[0,1,1,3]]}
[]
[]
[null,"NOM PRENOM","CLUB ","N° LICENCE"]
[]
[]
[null,"Nom joueur","Club","Licence"]
[null,"ABAD YANNICK","SPORT AMAT.DE BILLARD MARSEILLAIS","106287Z"]
[null,"ABEAUZIT JACQUES","BILLARD CLUB AVIGNONNAIS","106902Q"]
[null,"ABELA JOSEPH","BILLARD CLUB CAVAILLONNAIS","159403P"]
[null,"ABRARD MANON","BILLARD CLUB DE NICE","189566A"]
[null,"AKNIN GABRIEL","ACADEMIE DE BILLARD DE BOLLENE","021810W"]
[null,"ALARIO MICHEL","BILLARD CLUB GARDEEN","191132C"]
[null,"ALESSI JEAN PIERRE","BILLARD CLUB GARDEEN","149448T"]
[null,"ALIBERT BRUNO","BILLARD CLUB DE NICE","151459E"]
[null,"ALLIGIER GERARD","BILLARD CLUB DE LA BAIE","157036R"]
[null,"ALLORGE STEPHANE","CLUB BILLARD ISTREEN","186296W"]
[null,"ALVAREZ PHILIPPE","BILLARD CLUB DE NICE","159130S"]
[null,"ALVES PEREIRA CHRISTOPHE","BILLARD CLUB CAVAILLONNAIS","192080H"]
[null,"ALVISET GUY","BILLARD CLUB SAUSSETOIS","152035F"]
[null,"AMANS HERVE","CLUB BILLARD ISTREEN","177854V"]
[null,"AMMARI ANAS","SPORT AMAT.DE BILLARD MARSEILLAIS","186456V"]
[null,"AMOUROUX JACQUES ANTOINE","BILLARD CLUB GARDEEN","162879S"]
[null,"AMOUROUX LUC","BILLARD CLUB GARDEEN","155531F"]
[null,"ANDRY JEAN FRANCOIS","BILLARD CLUB ROGNAC","021818E"]
[null,"ANGUE PATRICK","BILLARD CLUB DE NICE","021819F"]
[null,"ANNESTAY JACQUES","BILLARD CLUB SISTERONNAIS","021820G"]
[null,"ANTONIN ALAIN","BILLARD CLUB CAVAILLONNAIS","021821H"]
[null,"ARENAS ROLDAN","ACADEMIE DE BILLARD DE MENTON","181505N"]
[null,"ARMENGAU PHILIPPE","BILLARD CLUB DE NICE","161785D"]
[null,"ARNAUD JEAN","BILLARD CLUB CAVAILLONNAIS","021827N"]
[null,"ARNAUD PIERRE","BILLARD CLUB CARPENTRASSIEN","122035R"]
[null,"ARNOUX LAURENT","ACADEMIE DE BILLARD DE BARBOSSI MANDELIEU","180272Y"]
[null,"ARTEAGA CASTILLO MARTIN","SPORT AMAT.DE BILLARD MARSEILLAIS","191583S"]
[null,"AUBERT ROUECHE LYDIA","BILLARD CLUB VINONNAIS","148204R"]
[null,"AUDET VINCENT","BILLARD CLUB CAVAILLONNAIS","192374C"]
[null,"AVRIL RICHARD","BRITISH BILLARD CLUB AVIGNON","182109V"]
[null,"AZOULAY ALAIN","BILLARD CLUB PHOCEEN","021839Z"]
[null,"BACHERGIAN MAXENCE","SPORT AMAT.DE BILLARD MARSEILLAIS","174115F"]
[null,"BADINIER MARC","ACADEMIE DE BILLARD DE BARBOSSI MANDELIEU","189187N"]
[null,"BAILLON JEAN","ACADEMIE DE BILLARD DE BARBOSSI MANDELIEU","115304U"]
[null,"BAJOLLE JEAN CLAUDE","BRITISH BILLARD CLUB AVIGNON","191036Y"]
[null,"BAKALI MOHAMED","SPORT AMAT.DE BILLARD MARSEILLAIS","174227C"]
[null,"BALESTRI MAURICE","ACADEMIE DE BILLARD DE BARBOSSI MANDELIEU","153554G"]
[null,"BALLAIS REMI","BILLARD CLUB PHOCEEN","186655L"]
[null,"BALLIGAND SERGE","BILLARD CLUB ROQUEBRUNOIS","023184S"]
[null,"BANC CORINNE","BILLARD CLUB PHOCEEN","192667W"]
[null,"BANCEL MARCEL","BILLARD CLUB DE NICE","021842C"]
[null,"BARBANNEAU FREDERIC","SALON BILLARD CLUB","109917P"]
[null,"BARBESANT DIDIER","ACADEMIE DE BILLARD DE BARBOSSI MANDELIEU","168289Y"]
[null,"BARNES JEAN PIERRE","CLUB BILLARD ISTREEN","177120X"]
[null,"BARRALLON JEAN PAUL","BILLARD CLUB GARDEEN","122300W"]
[null,"BASCOU DENIS","SPORT AMAT.DE BILLARD MARSEILLAIS","189376T"]
[null,"BASCOU REMY","SPORT AMAT.DE BILLARD MARSEILLAIS","189377V"]
[null,"BASSIGNANA ROBERT","BILLARD CLUB GARDEEN","129911P"]
[null,"BASSOUL JEAN MARIE","BILLARD CLUB CARPENTRASSIEN","103568K"]
[null,"BAUDOIN PIERRE","BILLARD CLUB DE NICE","188648C"]
[null,"BAUDOUX JEAN CLAUDE","ACADEMIE DE BILLARD DE BARBOSSI MANDELIEU","164877P"]
[null,"BAUTZMANN DIDIER","BILLARD CLUB PHOCEEN","021859T"]
[null,"BAYARD JEAN CLAUDE","BILLARD CLUB CAVAILLONNAIS","021860U"]
[null,"BAYLE PASCAL","BILLARD CLUB ROGNAC","021861V"]
[null,"BECK MICHEL","ACAD.BILLARD ST RAPHAEL","011797T"]
[null,"BECKER GERARD","BILLARD CLUB GARDEEN","177453J"]
[null,"BEDARIDE NICOLAS","SPORT AMAT.DE BILLARD MARSEILLAIS","170823C"]
[null,"BEDOC JACQUES","BILLARD CLUB BERROIS","021863X"]
[null,"BELAICH EDOUARD","BILLARD CLUB PHOCEEN","175776L"]
[null,"BELINGUIER MAXIME","SPORT AMAT.DE BILLARD MARSEILLAIS","182588Q"]
[null,"BENAMOU EMILE","BILLARD CLUB AVIGNONNAIS","021874I"]
[null,"BENAVIDES CLAUDE","SALON BILLARD CLUB","021872G"]
[null,"BENHAMOU ALEXIS","S. S. A. B. D AIX EN PROVENCE","160341J"]
[null,"BENIER PATRICK","BILLARD CLUB GARDEEN","159238K"]
[null,"BENOIT MICHEL","ACADEMIE DE BILLARD DE BOLLENE","159790K"]
[null,"BERLIOZ PASCAL","BILLARD CLUB CARPENTRASSIEN","151532J"]
[null,"BERNAT JEAN PIERRE","BILLARD CLUB GARDEEN","125945B"]
[null,"BERNEAU JEAN","BILLARD CLUB CAVAILLONNAIS","193758G"]
[null,"BERTHELOT CARLA","SPORT AMAT.DE BILLARD MARSEILLAIS","190948C"]
[null,"BETTONI GILLES","ACADEMIE DE BILLARD DE BARBOSSI MANDELIEU","180334Q"]
[null,"BEY DENIS","BRITISH BILLARD CLUB AVIGNON","191034W"]
[null,"BEZEAU PIERRE","BILLARD CLUB ROQUEBRUNOIS","185107D"]
[null,"BIARD ANDRE","CLUB BILLARD ISTREEN","159202W"]
[null,"BIARD ARTHUR","CLUB BILLARD ISTREEN","173584D"]
[null,"BIARD NOAH","CLUB BILLARD ISTREEN","173583C"]
[null,"BIDDAU FRANCOIS","CLUB BILLARD ISTREEN","125917Z"]
[null,"BLANC SANTELLI ERIC","CLUB BILLARD ISTREEN","179744Z"]
[null,"BOAZIZ JORDAN","BRITISH BILLARD CLUB AVIGNON","114819D"]
[null,"BOLLOTTE BENIGNE","BILLARD CLUB GARDEEN","175504Q"]
[null,"BONELLO LUCIEN","BILLARD CLUB ROGNAC","021894C"]
[null,"BONINA GABRIEL","BILLARD CLUB GARDEEN","178507E"]
[null,"BONNAMY FREDERIC","BRITISH BILLARD CLUB AVIGNON","101309N"]
[null,"BONNEMAISON DENIS","CLUB BILLARD ISTREEN","150422C"]
[null,"BONNICI ROGER","BILLARD CLUB PHOCEEN","168593D"]
[null,"BONSORTE GUILLAUME","SPORT AMAT.DE BILLARD MARSEILLAIS","191285T"]
[null,"BONTEMPS PAUL","S. S. A. B. D AIX EN PROVENCE","187537V"]
[null,"BONTOUX MAX","BILLARD CLUB ROGNAC","021900I"]
[null,"BOOSTEN ANAIS","BILLARD CLUB CARPENTRASSIEN","192792G"]
[null,"BORGNA GUY","S. S. A. B. D AIX EN PROVENCE","184114Z"]
[null,"BORGNA RAPHAEL","BILLARD CLUB ROGNAC","192609H"]
[null,"BORNMANN ROBERT","BILLARD CLUB PHOCEEN","118781N"]
[null,"BORTOT BENJAMIN","BILLARD CLUB PHOCEEN","179097W"]
[null,"BOTTINE YOHANN","BRITISH BILLARD CLUB AVIGNON","193270B"]
[null,"BOUCHAOUATA MAROUANE","SPORT AMAT.DE BILLARD MARSEILLAIS","187523E"]
[null,"BOUFFLET THIERRY","BILLARD CLUB SISTERONNAIS","182430T"]
[null,"BOULANDET ALAIN","ACADEMIE DE BILLARD DE MENTON","012645J"]
[null,"BOULANT CLAUDE","BILLARD CLUB DE LA BAIE","155529D"]
[null,"BOULKANE IMENE","BILLARD CLUB PHOCEEN","188448K"]
[null,"BOUNOUAR BADR","SPORT AMAT.DE BILLARD MARSEILLAIS","187028R"]
[null,"BOURDAREL PIERRE","BILLARD CLUB ORANGEOIS","190789E"]
[null,"BOURDELLES LAURENT","ACADEMIE DE BILLARD DE MENTON","021911T"]
[null,"BOUTILLE NICOLAS","ACADEMIE DE BILLARD DE BOLLENE","122662U"]
[null,"BOUTTIER CHARLES","BILLARD CLUB DE NICE","118665B"]
[null,"BOVET MICHEL","ACAD.BILLARD ST RAPHAEL","149613Y"]
[null,"BOYER ANNE MARIE","BILLARD CLUB GARDEEN","168877M"]
[null,"BRAFMAN RAPHAELLE","SPORT AMAT.DE BILLARD MARSEILLAIS","173934J"]
[null,"BRAYER DENIS","BRITISH BILLARD CLUB AVIGNON","016411F"]
[null,"BREDAT RENE","BILLARD CLUB SISTERONNAIS","021918A"]
[null,"BREMOND LILIAN","BILLARD CLUB SISTERONNAIS","193536Q"]
[null,"BREPSON MARTIAL","ACADEMIE DE BILLARD DE BARBOSSI MANDELIEU","152345S"]
[null,"BRETON LUC","BILLARD CLUB CARPENTRASSIEN","172527E"]
[null,"BRIAND ALAIN","SPORT AMAT.DE BILLARD MARSEILLAIS","113104E"]
[null,"BRIAND GERARD","BILLARD CLUB PHOCEEN","191185K"]
[null,"BRIAND PHOUKHAM","BILLARD CLUB PHOCEEN","190494J"]
[null,"BRIOIT DOMINIQUE","ACADEMIE DE BILLARD DE MENTON","021920C"]
[null,"BRIOSNE PASCAL","S. S. A. B. D AIX EN PROVENCE","021922E"]
[null,"BROUILLET PATRICE","BILLARD CLUB PHOCEEN","188527W"]
[null,"BROUSSE ZAC","SPORT AMAT.DE BILLARD MARSEILLAIS","177428G"]
[null,"BRUANT SYLVAIN","BILLARD CLUB ORANGEOIS","114733V"]
[null,"BRUN ROGER","BILLARD CLUB PHOCEEN","021929L"]
[null,"BUFFARD JEAN","BILLARD CLUB ORANGEOIS","021933P"]
[null,"BUSSI SERGE","BILLARD CLUB PHOCEEN","190817K"]
[null,"CACHO DIDIER","BILLARD CLUB LA FARE","112311R"]
[null,"CAILLAUD DANIEL","BILLARD CLUB GARDEEN","144785R"]
[null,"CALDERON LUC","CLUB BILLARD ISTREEN","021938U"]
[null,"CALTAVUTURO MASSIMO","BILLARD CLUB PHOCEEN","190649C"]
[null,"CANAL FRANCOIS","CLUB BILLARD ISTREEN","159692D"]
[null,"CANELA MARC","BILLARD CLUB CAVAILLONNAIS","184423K"]
[null,"CAO HUU TUOI","BILLARD CLUB LA FARE","021944A"]
[null,"CAO MEGANE","BILLARD CLUB LA FARE","173581A"]
[null,"CARAIL MICHEL","BILLARD CLUB CAVAILLONNAIS","146885L"]
[null,"CARDINALI DENIS","BILLARD CLUB DE NICE","021946C"]
[null,"CARDONA ALAIN","BRITISH BILLARD CLUB AVIGNON","189664G"]
[null,"CARLES MICHEL","BILLARD CLUB AVIGNONNAIS","179685K"]
[null,"CARPENTRAS MICHEL","BRITISH BILLARD CLUB AVIGNON","101302G"]
[null,"CARRILLON MICHEL","S. S. A. B. D AIX EN PROVENCE","141066Q"]
[null,"CARRION JEAN PHILIPPE","ACADEMIE DE BILLARD DE BARBOSSI MANDELIEU","130701Z"]
[null,"CASTELLI BERNARD","BILLARD CLUB DE NICE","188647B"]
[null,"CATONI LAURENT","BILLARD CLUB AVIGNONNAIS","021955L"]
[null,"CAUDRY ALAIN","BILLARD CLUB GARDEEN","170688F"]
[null,"CAYROL MARTINE","BILLARD CLUB CAVAILLONNAIS","193131A"]
[null,"CEDO MARC","BILLARD CLUB PHOCEEN","190518K"]
[null,"CERVONE VINCENT","SPORT AMAT.DE BILLARD MARSEILLAIS","189378W"]
[null,"CESARINI JEAN PAUL","BILLARD CLUB VINONNAIS","112516O"]
[null,"CESARO JEAN CLAUDE","BILLARD CLUB BERROIS","118684U"]
[null,"CHABANNES GERARD","BILLARD CLUB CAVAILLONNAIS","193130Z"]
[null,"CHABASSIERE DOMINIQUE","BILLARD CLUB SAUSSETOIS","173622V"]
[null,"CHABERT JEAN PIERRE","BILLARD CLUB CAVAILLONNAIS","021958O"]
[null,"CHABOT ALAIN","ACAD.BILLARD ST RAPHAEL","172215Q"]
[null,"CHABOUD JACQUES","BILLARD CLUB GARDEEN","161620Z"]
[null,"CHAIX JOEL","BILLARD CLUB SISTERONNAIS","021960Q"]
[null,"CHAKIB OTMANE","BRITISH BILLARD CLUB AVIGNON","191554L"]
[null,"CHAMPIGNE FRANCOISE","BILLARD CLUB AVIGNONNAIS","170684B"]
[null,"CHANU ALICE","BILLARD CLUB SISTERONNAIS","186206Y"]
[null,"CHAOUI ISSAM","SPORT AMAT.DE BILLARD MARSEILLAIS","191165N"]
[null,"CHAPUIS ERIC","BILLARD CLUB DE NICE","104469B"]
[null,"CHARBAUT CLAUDE","BILLARD CLUB ROQUEBRUNOIS","122456W"]
[null,"CHARBIT JEAN MARC","BILLARD CLUB DE NICE","021967X"]
[null,"CHARPENTIER MARC","BILLARD CLUB PHOCEEN","185636D"]
[null,"CHASTAN GEORGES","BILLARD CLUB CARPENTRASSIEN","012782Q"]
[null,"CHEMLA ELIE","BILLARD CLUB AVIGNONNAIS","137581P"]
[null,"CHEURF SELIMANE","BILLARD CLUB ROGNAC","187031V"]
[null,"CHICARD ALAIN","BILLARD CLUB CARPENTRASSIEN","160332Z"]
[null,"CLAUDEPIERRE JEAN MARIE","BILLARD CLUB DE NICE","015068O"]
[null,"CLAUDON PHILIPPE","BILLARD CLUB DE NICE","148126G"]
[null,"CLEMENT GERARD","BILLARD CLUB SAUSSETOIS","129497R"]
[null,"COHEN RICHARD","ACADEMIE DE BILLARD DE BARBOSSI MANDELIEU","012827J"]
[null,"COHEN RICHARD","BILLARD CLUB DE NICE","148796K"]
[null,"COIGNARD CEDRIC","BRITISH BILLARD CLUB AVIGNON","162563Z"]
[null,"COLOMBANI PHILIPPE","BILLARD CLUB DE NICE","175623V"]
[null,"COLOMBINI ALAIN","SPORT AMAT.DE BILLARD MARSEILLAIS","186457W"]
[null,"COPPIN JEAN MICHEL","ACADEMIE DE BILLARD DE BOLLENE","021985P"]
[null,"CORBET LAURENT","BILLARD CLUB CAVAILLONNAIS","021987R"]
[null,"CORBIN LUC","BILLARD CLUB GARDEEN","164007T"]
[null,"CORNET MARIELLE","BILLARD CLUB ROQUEBRUNOIS","185390L"]
[null,"CORTES JEAN LOUIS","CLUB BILLARD ISTREEN","187055W"]
[null,"COSTE PHILIPPE","ACAD.BILLARD ST RAPHAEL","125938U"]
[null,"COTTET JACQUES","BILLARD CLUB SISTERONNAIS","139655J"]
[null,"COUPET PHILIPPE","BILLARD CLUB GARDEEN","119932U"]
[null,"COUPIGNY JEAN PAUL","ACADEMIE DE BILLARD DE BARBOSSI MANDELIEU","193209K"]
[null,"COURBOT LUDWIG","S. S. A. B. D AIX EN PROVENCE","016838Q"]
[null,"COUSIN YANNICK","SPORT AMAT.DE BILLARD MARSEILLAIS","190749L"]
[null,"COZETTE SYLVIE","BILLARD CLUB GARDEEN","168685D"]
[null,"CREUZOT PATRICE","BILLARD CLUB PHOCEEN","021996A"]
[null,"CROUZET JEAN ANDRE","ACADEMIE DE BILLARD DE BOLLENE","152067Q"]
[null,"CUADRADO HECTOR","BILLARD CLUB CAVAILLONNAIS","142586C"]
[null,"CURET GEORGES","BILLARD CLUB PHOCEEN","190313M"]
[null,"DA COSTA VIEIRA TONY","SPORT AMAT.DE BILLARD MARSEILLAIS","188119C"]
[null,"DAIFHALLA PUICHAULT YANNIS","BILLARD CLUB SISTERONNAIS","182676L"]
[null,"DALAIN JEAN MARC","SPORT AMAT.DE BILLARD MARSEILLAIS","104445D"]
[null,"DALMASSO EMMANUELLE","BILLARD CLUB SISTERONNAIS","177204N"]
[null,"DAMON GERARD","BILLARD CLUB DE NICE","022002G"]
[null,"DAMON OLIVIER","SALON BILLARD CLUB","022003H"]
[null,"DAREAU GERALD","ACADEMIE DE BILLARD DE MENTON","170095L"]
[null,"DARIO DIDIER","BILLARD CLUB CAVAILLONNAIS","022000E"]
[null,"DAUPHIN MICHEL","BILLARD CLUB AVIGNONNAIS","014828I"]
[null,"DAUPHIN THYFFEN","SPORT AMAT.DE BILLARD MARSEILLAIS","172573E"]
[null,"DAVID ARNAUD","BILLARD CLUB ORANGEOIS","189295F"]
[null,"DAVID FLORENCE","BILLARD CLUB SISTERONNAIS","191268A"]
[null,"DAVID THIERRY","BILLARD CLUB SISTERONNAIS","155526A"]
[null,"DE GRYSE GERARD","BILLARD CLUB GARDEEN","139487X"]
[null,"DE HAAN PATRICK","BILLARD CLUB GARDEEN","140113Z"]
[null,"DE LOOSE FELIX","BILLARD CLUB VINONNAIS","163348C"]
[null,"DE RIGAL DANIEL","ACADEMIE DE BILLARD DE BOLLENE","127655V"]
[null,"DE VILLENEUVE MICHEL","BILLARD CLUB GARDEEN","192722F"]
[null,"DEBOSZ RICHARD","BILLARD CLUB CAVAILLONNAIS","140093F"]
[null,"DEBRUYNE ANNE","BILLARD CLUB VINONNAIS","184548W"]
[null,"DEBRUYNE TRISTAN","BILLARD CLUB VINONNAIS","113220Q"]
[null,"DEBUYSER ANNE","ACADEMIE DE BILLARD DE BARBOSSI MANDELIEU","178356Q"]
[null,"DECORPS LOUIS","CLUB BILLARD ISTREEN","190973E"]
[null,"DECORPS PAULINE","CLUB BILLARD ISTREEN","190974F"]
[null,"DEDON DENISE","BILLARD CLUB BERROIS","181198E"]
[null,"DEDON RICHARD","BILLARD CLUB BERROIS","177233V"]
[null,"DEFRETIN JOEL","BILLARD CLUB GARDEEN","020635R"]
[null,"DELAIRE JEAN PIERRE","BILLARD CLUB CAVAILLONNAIS","166003N"]
[null,"DELAPORTE YVES","BILLARD CLUB CARPENTRASSIEN","160334B"]
[null,"DELBEY JULIEN","SALON BILLARD CLUB","112719J"]
[null,"DELZORS JEAN PIERRE","BILLARD CLUB DE NICE","143883Z"]
[null,"DEMARCQ JEAN FRANCOIS","BILLARD CLUB SISTERONNAIS","168662D"]
[null,"DEMERLIAC BRUNO","BILLARD CLUB BERROIS","159076J"]
[null,"DENIS GILLES","CLUB BILLARD ISTREEN","186297X"]
[null,"DERUELLE NICOLAS","BRITISH BILLARD CLUB AVIGNON","178042Z"]
[null,"DESMERO RAYMOND","BILLARD CLUB BERROIS","142358I"]
[null,"DESSAIGNES BRUNO","BILLARD CLUB PHOCEEN","193452Z"]
[null,"DESWAZIERE MICHEL","ACADEMIE DE BILLARD DE BOLLENE","115051B"]
[null,"DHENNIN MICHEL","BILLARD CLUB ROQUEBRUNOIS","176237M"]
[null,"DI BIN JEAN MARIE","ACADEMIE DE BILLARD DE BOLLENE","135014W"]
[null,"DI CRESCENZO PIERRE","BILLARD CLUB PHOCEEN","109528Q"]
[null,"DION JEAN LOUIS","BILLARD CLUB CARPENTRASSIEN","160331Y"]
[null,"DOMINGUEZ LAURENT","BILLARD CLUB PHOCEEN","190312L"]
[null,"DONABEDIAN DANIEL","BILLARD CLUB DE LA BAIE","142363N"]
[null,"DORNBUSH MARTINE","BILLARD CLUB GARDEEN","181974Y"]
[null,"DOS SANTOS FRANCIS","BILLARD CLUB SAUSSETOIS","022039R"]
[null,"DOUIEB ALAIN","ACADEMIE DE BILLARD DE BARBOSSI MANDELIEU","149802D"]
[null,"DOUSSET RENE","BILLARD CLUB GARDEEN","174348J"]
[null,"DREMEAUX JEAN PIERRE","BILLARD CLUB GARDEEN","140803N"]
[null,"DRONET CHRYSTEL","BILLARD CLUB CARPENTRASSIEN","134193H"]
[null,"DUBREUIL FRANCK","ACAD.BILLARD ST RAPHAEL","013022W"]
[null,"DUNAND ERIC","BILLARD CLUB VINONNAIS","190427L"]
[null,"DUPONT DOROTHEE","BILLARD CLUB SISTERONNAIS","193485K"]
[null,"DUPUY MICHEL","ACADEMIE DE BILLARD DE BARBOSSI MANDELIEU","011522E"]
[null,"DURAND JEAN PIERRE","BILLARD CLUB DE NICE","189164N"]
[null,"DUSSAULE PIERRE","ACADEMIE DE BILLARD DE BOLLENE","102285B"]
[null,"DUSSEAUX PATRICK","BILLARD CLUB CAVAILLONNAIS","183248H"]
[null,"DUVAL THIERRY","ACAD.BILLARD ST RAPHAEL","175172E"]
[null,"ECK MICHEL","BILLARD CLUB PHOCEEN","146662W"]
[null,"EGRETEAUD CHRISTOPHE","BILLARD CLUB PHOCEEN","155680S"]
[null,"EL GOUMI GHALI","SPORT AMAT.DE BILLARD MARSEILLAIS","191332V"]
[null,"EL MEGHARY MAROUANE","SPORT AMAT.DE BILLARD MARSEILLAIS","140809T"]
[null,"ELEOUET DANIEL","BILLARD CLUB CARPENTRASSIEN","163467G"]
[null,"ELOY JEAN CHRISTIAN","ACAD.BILLARD ST RAPHAEL","191251G"]
[null,"ESSAIDI TARIK","BRITISH BILLARD CLUB AVIGNON","182064W"]
[null,"ESTABLIER PIERRE","BILLARD CLUB GARDEEN","147622J"]
[null,"EYGRIER GERARD","BRITISH BILLARD CLUB AVIGNON","101343V"]
[null,"FABER ERWIN","BILLARD CLUB CAVAILLONNAIS","186621Z"]
[null,"FABRE ALEXANDRE","SPORT AMAT.DE BILLARD MARSEILLAIS","186571V"]
[null,"FABRE BENDJILLALI SARAH","SPORT AMAT.DE BILLARD MARSEILLAIS","192086P"]
[null,"FAIVRE D ARCIER PATRICK","BILLARD CLUB DE NICE","022061N"]
[null,"FALEH MOHAMMED","SPORT AMAT.DE BILLARD MARSEILLAIS","187064F"]
[null,"FALQUERO LOUIS","BILLARD CLUB ROGNAC","192180R"]
[null,"FAROUT FRANCOIS","BRITISH BILLARD CLUB AVIGNON","190791G"]
[null,"FARSI RAYANE","SPORT AMAT.DE BILLARD MARSEILLAIS","185115M"]
[null,"FAUQUE JEAN PHILIPPE","BRITISH BILLARD CLUB AVIGNON","192641S"]
[null,"FAUQUE JOSIANE","BRITISH BILLARD CLUB AVIGNON","192640R"]
[null,"FAURE EMILE","BILLARD CLUB ORANGEOIS","022065R"]
[null,"FAVARIO CHRISTIAN","ACADEMIE DE BILLARD DE BOLLENE","022066S"]
[null,"FAVEAU MARTINE","BILLARD CLUB AVIGNONNAIS","184760B"]
[null,"FERAUD GERARD","ACADEMIE DE BILLARD DE BOLLENE","022067T"]
[null,"FERAUD GUILLAUME","BILLARD CLUB PHOCEEN","191242X"]
[null,"FERAUD LOUIS","BILLARD CLUB SISTERONNAIS","182675K"]
[null,"FERHAT ACHOUR","BILLARD CLUB GARDEEN","129036Y"]
[null,"FERNANDEZ MARC","BILLARD CLUB CAVAILLONNAIS","013111H"]
[null,"FERRE DIDIER","ACADEMIE DE BILLARD DE BARBOSSI MANDELIEU","120704M"]
[null,"FERRO PHILIPPE","CLUB BILLARD ISTREEN","122658Q"]
[null,"FLECHE HERVE","BILLARD CLUB AVIGNONNAIS","194084L"]
[null,"FLEURIOT PATRICK","BILLARD CLUB AVIGNONNAIS","173138T"]
[null,"FLEURY CORENTIN","SPORT AMAT.DE BILLARD MARSEILLAIS","191283R"]
[null,"FONTAINE DANY","BILLARD CLUB GARDEEN","101139Z"]
[null,"FOURNET SEBASTIEN","SPORT AMAT.DE BILLARD MARSEILLAIS","184732W"]
[null,"FRANCO ALBERT","BILLARD CLUB DE LA BAIE","022084K"]
[null,"FRANCO FREDERIC","BRITISH BILLARD CLUB AVIGNON","187161L"]
[null,"FRANCO HENRY","ACADEMIE DE BILLARD DE MENTON","118688Y"]
[null,"FREYSSINGE PIERRE","BILLARD CLUB GARDEEN","192721E"]
[null,"FRIBURGER QUENTIN","SPORT AMAT.DE BILLARD MARSEILLAIS","192150J"]
[null,"FRIKH ILHAN","SPORT AMAT.DE BILLARD MARSEILLAIS","193211M"]
[null,"FROMEYER CORINNE","ACADEMIE DE BILLARD DE BARBOSSI MANDELIEU","167290M"]
[null,"FURNON ROGER","BILLARD CLUB AVIGNONNAIS","159060R"]
[null,"GABETTO STEPHANE","BILLARD CLUB GARDEEN","103216W"]
[null,"GALLEZ DANIEL","BILLARD CLUB DE LA BAIE","178728V"]
[null,"GALLUCCI STEPHANE","BILLARD CLUB DE NICE","022091R"]
[null,"GAMEN ANDRE","BILLARD CLUB GARDEEN","147288W"]
[null,"GANTOIS GILLES","BILLARD CLUB ORANGEOIS","022092S"]
[null,"GARLPERN CHRISTIAN","BILLARD CLUB ORANGEOIS","190788D"]
[null,"GATTINO MARCO","ACADEMIE DE BILLARD DE MENTON","147262S"]
[null,"GATTO ANTOINE","BILLARD CLUB SAUSSETOIS","022097X"]
[null,"GAUTHIER OLIVIER","BILLARD CLUB ROGNAC","191272E"]
[null,"GAUTIER PATRICK","ACADEMIE DE BILLARD DE BOLLENE","186342W"]
[null,"GAVALDA PIERRE","BILLARD CLUB CARPENTRASSIEN","116278G"]
[null,"GAYRAUD FRANCOISE","BILLARD CLUB DE NICE","143227T"]
[null,"GEDOR FRANCIS","ACAD.BILLARD ST RAPHAEL","186701L"]
[null,"GEFFROY MEGGAN","BRITISH BILLARD CLUB AVIGNON","183704D"]
[null,"GELAS BERNARD","BILLARD CLUB LA FARE","163279C"]
[null,"GENESTON JEAN LOUIS","BILLARD CLUB SISTERONNAIS","139657L"]
[null,"GEOFFROY GUILLAUME","BILLARD CLUB PHOCEEN","183566D"]
[null,"GERARD PASCAL","BILLARD CLUB DE NICE","022103D"]
[null,"GERARD THOMAS","BILLARD CLUB DE NICE","167330F"]
[null,"GERVAIS GUILLAUME","BILLARD CLUB CAVAILLONNAIS","022104E"]
[null,"GHU GERARD","BILLARD CLUB ORANGEOIS","101282M"]
[null,"GIANNATTASIO LUCIEN","CLUB BILLARD ISTREEN","022108I"]
[null,"GIBARROUX CHRISTOPHE","S. S. A. B. D AIX EN PROVENCE","118661X"]
[null,"GIFFARD PHILIPPE","BILLARD CLUB GARDEEN","149390F"]
[null,"GILLET PHILIPPE","ACADEMIE DE BILLARD DE BARBOSSI MANDELIEU","180514L"]
[null,"GILLODTS CHRISTIAN","BILLARD CLUB PHOCEEN","149471T"]
[null,"GIOVANNETTI DAMIEN","BILLARD CLUB SAUSSETOIS","022115P"]
[null,"GIRARD ALAIN","BILLARD CLUB PHOCEEN","193451Y"]
[null,"GIRARD DENIS","BILLARD CLUB GARDEEN","172734E"]
[null,"GOAILLARD JEAN MARC","BILLARD CLUB PHOCEEN","181920P"]
[null,"GODARD PASCAL","BILLARD CLUB CARPENTRASSIEN","157852D"]
[null,"GOUBAUX ALAIN","BILLARD CLUB DE NICE","022127B"]
[null,"GOUILLON MATTHIEU","BILLARD CLUB DE NICE","174010R"]
[null,"GOUIRAN GEORGES","BILLARD CLUB SAUSSETOIS","022129D"]
[null,"GOURSEAUD YVES","BILLARD CLUB ORANGEOIS","104054C"]
[null,"GOYAUD YVES","SPORT AMAT.DE BILLARD MARSEILLAIS","135555R"]
[null,"GRAND COLAS ANNIE","ACADEMIE DE BILLARD DE BARBOSSI MANDELIEU","194074A"]
[null,"GRANDBOUCHE FRANCOIS","SPORT AMAT.DE BILLARD MARSEILLAIS","180247W"]
[null,"GREGEOIS MAEL","SPORT AMAT.DE BILLARD MARSEILLAIS","183595K"]
[null,"GROUSSON ROBERT","CLUB BILLARD ISTREEN","172011T"]
[null,"GUENARD MATTEO","SPORT AMAT.DE BILLARD MARSEILLAIS","193399R"]
[null,"GUERI ROBERT","ACADEMIE DE BILLARD DE BOLLENE","135013V"]
[null,"GUERIN RAYMOND","BILLARD CLUB PHOCEEN","103615F"]
[null,"GUERINEAU BRUNO","BILLARD CLUB CAVAILLONNAIS","144796C"]
[null,"GUERINEAU THIERRY","BILLARD CLUB CAVAILLONNAIS","022135J"]
[null,"GUERN ROCH","BILLARD CLUB GARDEEN","112620O"]
[null,"GUEUG PIERRE","BILLARD CLUB DE NICE","104475H"]
[null,"GUEZARD RENAUD","BILLARD CLUB AVIGNONNAIS","194070W"]
[null,"GUIZELIN PASCAL","BILLARD CLUB VINONNAIS","154530S"]
[null,"GURRIERI MIREILLE","BILLARD CLUB DE NICE","189568C"]
[null,"GUYENOT JEAN LOUIS","BILLARD CLUB DE NICE","161784C"]
[null,"HABOUBA ISMAIL","SPORT AMAT.DE BILLARD MARSEILLAIS","191331T"]
[null,"HADDAD JEAN PIERRE","BILLARD CLUB AVIGNONNAIS","184013P"]
[null,"HADDOUCHE JONATHAN","SPORT AMAT.DE BILLARD MARSEILLAIS","147316B"]
[null,"HAHN DANIEL","BILLARD CLUB PHOCEEN","011966G"]
[null,"HAKIM PALAYER PATRICK","BILLARD CLUB PHOCEEN","192551V"]
[null,"HARB MANUEL","SPORT AMAT.DE BILLARD MARSEILLAIS","187034Y"]
[null,"HARLAY MATHIS","SPORT AMAT.DE BILLARD MARSEILLAIS","190576Y"]
[null,"HAZE PATRICK","BILLARD CLUB CAVAILLONNAIS","137523J"]
[null,"HEBERT FRANCOIS","BILLARD CLUB AVIGNONNAIS","191457F"]
[null,"HERMITTE JEAN LUC","BILLARD CLUB GARDEEN","189259R"]
[null,"HERREMAN SERGE","BILLARD CLUB GARDEEN","119933V"]
[null,"HEURTAULT JACKY","SALON BILLARD CLUB","137004K"]
[null,"HOLUIGUE ROGER","BILLARD CLUB GARDEEN","177454K"]
[null,"HUGUET PATRICK","BILLARD CLUB PHOCEEN","172086A"]
[null,"HUSSON ANDREE","BILLARD CLUB LA FARE","190861H"]
[null,"IACOPINI LEANE","BRITISH BILLARD CLUB AVIGNON","192570Q"]
[null,"IACOPINI LUDO","BRITISH BILLARD CLUB AVIGNON","191087D"]
[null,"IDJERI GILBERT","BILLARD CLUB SAUSSETOIS","172214P"]
[null,"IOZZOLINO PHILIPPO","BILLARD CLUB PHOCEEN","188261G"]
[null,"ISRAEL ELIE","BILLARD CLUB PHOCEEN","184059P"]
[null,"IVACHEFF HELENE","BILLARD CLUB VINONNAIS","184667A"]
[null,"IVACHEFF MICHEL","BILLARD CLUB VINONNAIS","181239Z"]
[null,"JABBOUR HAMZA","SPORT AMAT.DE BILLARD MARSEILLAIS","182210E"]
[null,"JANNOT FREDERIC","BILLARD CLUB DE LA BAIE","183489V"]
[null,"JONNARD FREDERIC","BILLARD CLUB GARDEEN","120814S"]
[null,"JOULIN WILLIAM","BILLARD CLUB CAVAILLONNAIS","169331F"]
[null,"JOUSSERAND JEAN CHRISTOPHE","CLUB BILLARD ISTREEN","150423D"]
[null,"JOUVE PHILIPPE","BRITISH BILLARD CLUB AVIGNON","183705E"]
[null,"JUDALET FRANCOIS","BILLARD CLUB DE LA BAIE","190344W"]
[null,"JUMEL RENE","ACADEMIE DE BILLARD DE BOLLENE","162905W"]
[null,"KASSAOUI RADOUANE","SPORT AMAT.DE BILLARD MARSEILLAIS","192140Y"]
[null,"KIOUS MOURAD","SPORT AMAT.DE BILLARD MARSEILLAIS","188099F"]
[null,"KOSKACH JEAN PAUL","BILLARD CLUB PHOCEEN","022173V"]
[null,"LABATUT FRANCOIS","BILLARD CLUB ROQUEBRUNOIS","186947D"]
[null,"LABBE MICHEL","BILLARD CLUB AVIGNONNAIS","187441Q"]
[null,"LACOSSE JEAN PAUL","BILLARD CLUB DE LA BAIE","109977X"]
[null,"LAFDJIAN GILBERT","BILLARD CLUB BERROIS","177232T"]
[null,"LAM MINH TRUNG DENIS","BILLARD CLUB DE NICE","181038F"]
[null,"LANARI PIERRE","BILLARD CLUB DE NICE","175999D"]
[null,"LANDE GERARD","BILLARD CLUB AVIGNONNAIS","016084Q"]
[null,"LANDERECTHE PASCAL","BILLARD CLUB ROGNAC","181199F"]
[null,"LANG CHRISTIAN","CLUB BILLARD ISTREEN","022186I"]
[null,"LANNURIEN THIERRY","BILLARD CLUB GARDEEN","168288X"]
[null,"LASSERRE JEAN MARC","ACAD.BILLARD ST RAPHAEL","191252H"]
[null,"LAUDY JEAN","ACADEMIE DE BILLARD DE BARBOSSI MANDELIEU","187426Z"]
[null,"LAUNAY LAURENT","BILLARD CLUB PHOCEEN","190256A"]
[null,"LAUNAY MICHEL","ACADEMIE DE BILLARD DE BARBOSSI MANDELIEU","178352L"]
[null,"LAVEIL LAURENT","BRITISH BILLARD CLUB AVIGNON","192642T"]
[null,"LE FAUCHEUR LAURENT","BILLARD CLUB LA FARE","163278B"]
[null,"LEBARBENCHON JEAN","ACADEMIE DE BILLARD DE MENTON","177122Z"]
[null,"LEBLANC OLIVIER","ACAD.BILLARD ST RAPHAEL","163139A"]
[null,"LECOQ ARNAUD","SALON BILLARD CLUB","141504M"]
[null,"LEDUCQ MORGAN","BILLARD CLUB AVIGNONNAIS","105373V"]
[null,"LEFAUX JEAN JACQUES","BILLARD CLUB SISTERONNAIS","117411V"]
[null,"LEFEVRE CLAUDE","ACADEMIE DE BILLARD DE BARBOSSI MANDELIEU","193803F"]
[null,"LEGER CHRISTIAN","BRITISH BILLARD CLUB AVIGNON","184966A"]
[null,"LEGER RAYAN","BILLARD CLUB DE NICE","182751S"]
[null,"LEMARTINET ROBERT","BILLARD CLUB DE LA BAIE","110379J"]
[null,"LEMESLE FABRICE","BILLARD CLUB PHOCEEN","022205B"]
[null,"LEMIERE JEAN NOEL","BILLARD CLUB GARDEEN","104233Z"]
[null,"LEON ALFRED","BILLARD CLUB CAVAILLONNAIS","186622A"]
[null,"LEONESI ALAIN","BILLARD CLUB AVIGNONNAIS","168015A"]
[null,"LESPRIT CLAUDE","BILLARD CLUB DE LA BAIE","179358E"]
[null,"LESUR NATHALIE","BILLARD CLUB DE NICE","178451T"]
[null,"LETELLIER ALAIN","BILLARD CLUB ROGNAC","176350K"]
[null,"LEVISTRE ALAIN","BILLARD CLUB AVIGNONNAIS","184858H"]
[null,"LEYNAUD JEAN LUC","SPORT AMAT.DE BILLARD MARSEILLAIS","147317C"]
[null,"LIEGEOIS DOMINIQUE","ACADEMIE DE BILLARD DE BOLLENE","022209F"]
[null,"LIMA STEPHANE","BRITISH BILLARD CLUB AVIGNON","161477T"]
[null,"LIONNE GEORGES","ACADEMIE DE BILLARD DE BOLLENE","178650K"]
[null,"LIOU THAI HUNG","ACAD.BILLARD ST RAPHAEL","122673F"]
[null,"LISI ROGER","BILLARD CLUB BERROIS","146375V"]
[null,"LISSAJOUX JEAN CLAUDE","CLUB BILLARD ISTREEN","168722T"]
[null,"LLOBELL ALAIN","BILLARD CLUB PHOCEEN","170266X"]
[null,"LOCKS TIMOTHY","BILLARD CLUB SISTERONNAIS","174810L"]
[null,"LOMBARDO BERNARD","BILLARD CLUB PHOCEEN","190366V"]
[null,"LOSTAO DOMINIQUE","ACADEMIE DE BILLARD DE BARBOSSI MANDELIEU","168030R"]
[null,"LUCENET PAUL","CLUB BILLARD ISTREEN","162076V"]
[null,"LUNEAU JEAN CLAUDE","BILLARD CLUB GARDEEN","186880F"]
[null,"MABED MARC","ACAD.BILLARD ST RAPHAEL","175795G"]
[null,"MACQUET PATRICK","BILLARD CLUB DE NICE","022223T"]
[null,"MAGNANT ELISABETH","BILLARD CLUB DE NICE","188649D"]
[null,"MAGNIER PIERRE","BILLARD CLUB GARDEEN","165843P"]
[null,"MALLEVAL GERARD","BILLARD CLUB GARDEEN","100910E"]
[null,"MAMBERTI ROXANE","SPORT AMAT.DE BILLARD MARSEILLAIS","191164M"]
[null,"MANSUY THIERRY","BILLARD CLUB CARPENTRASSIEN","191498A"]
[null,"MAQUET SYLVIE","BILLARD CLUB DE NICE","189686F"]
[null,"MARCEAUX JOSE","BILLARD CLUB ROQUEBRUNOIS","020447L"]
[null,"MARCEIX ALAIN","BILLARD CLUB AVIGNONNAIS","184650G"]
[null,"MARCHAND PHILIPPE","S. S. A. B. D AIX EN PROVENCE","164047M"]
[null,"MARCHANDISE MORAND JACQUELINE","BILLARD CLUB SISTERONNAIS","177467Z"]
[null,"MARIE MICHEL","BILLARD CLUB CAVAILLONNAIS","175846M"]
[null,"MARIGLIANI THAIS","BILLARD CLUB PHOCEEN","191544A"]
[null,"MARTIN CLAUDE","BILLARD CLUB CAVAILLONNAIS","175391S"]
[null,"MARTIN GISELE","CLUB BILLARD ISTREEN","193611X"]
[null,"MARTIN NICOLE","BILLARD CLUB AVIGNONNAIS","184012N"]
[null,"MARTIN YANNICK","CLUB BILLARD ISTREEN","193609V"]
[null,"MARTINEZ BENOIT","BRITISH BILLARD CLUB AVIGNON","180741H"]
[null,"MARTINEZ BERNARD","ACAD.BILLARD ST RAPHAEL","143727Z"]
[null,"MARTINEZ EDMOND","CLUB BILLARD ISTREEN","190355H"]
[null,"MARTY MICHEL","BILLARD CLUB DE NICE","192565K"]
[null,"MASSERAN PHILIPPE","ACADEMIE DE BILLARD DE BARBOSSI MANDELIEU","103581X"]
[null,"MASSIANI BRETON YANN","BILLARD CLUB PHOCEEN","190462Z"]
[null,"MASSIAS GUY","S. S. A. B. D AIX EN PROVENCE","172680W"]
[null,"MASSOT SEBASTIEN","BILLARD CLUB SISTERONNAIS","159674J"]
[null,"MATHE CLAUDE","BILLARD CLUB DE NICE","185218Z"]
[null,"MAUDUIT DIDIER","CLUB BILLARD ISTREEN","017615N"]
[null,"MAURON BERNARD","BILLARD CLUB GARDEEN","149391G"]
[null,"MAURY MICHELLE","BRITISH BILLARD CLUB AVIGNON","188265L"]
[null,"MAYNARD ALEXANDRE","BILLARD CLUB DE NICE","112015H"]
[null,"MEGUIN ERIC","BILLARD CLUB CAVAILLONNAIS","128466A"]
[null,"MELLET PIERRE","ACADEMIE DE BILLARD DE BOLLENE","144802I"]
[null,"MENJRA SAAD","BRITISH BILLARD CLUB AVIGNON","188264K"]
[null,"MERLIOT CYRIL","BRITISH BILLARD CLUB AVIGNON","154630B"]
[null,"METAIS ALBAN","BILLARD CLUB CARPENTRASSIEN","152604Z"]
[null,"MEYER LUC","BILLARD CLUB GARDEEN","022260E"]
[null,"MICHEL JACQUES","BILLARD CLUB CARPENTRASSIEN","183513W"]
[null,"MILANA NICOLAS","BILLARD CLUB LA FARE","176968G"]
[null,"MILLOT ANITA","BILLARD CLUB GARDEEN","180677N"]
[null,"MILLOT BENOIT","BILLARD CLUB GARDEEN","180676M"]
[null,"MILLOT ROBERT","BILLARD CLUB SISTERONNAIS","172218T"]
[null,"MISRAKI ROMAIN","SPORT AMAT.DE BILLARD MARSEILLAIS","144792Y"]
[null,"MISSUD ALAIN","BILLARD CLUB AVIGNONNAIS","138210U"]
[null,"MOGLIA EMILE","BILLARD CLUB AVIGNONNAIS","022266K"]
[null,"MOINON FRANCOIS","SPORT AMAT.DE BILLARD MARSEILLAIS","184069A"]
[null,"MOLAND PHILIPPE","ACAD.BILLARD ST RAPHAEL","022268M"]
[null,"MOLINAS ROBERT","BILLARD CLUB CAVAILLONNAIS","022270O"]
[null,"MONNET JEAN CLAUDE","BILLARD CLUB CAVAILLONNAIS","022271P"]
[null,"MONTALTI PIERRE","SPORT AMAT.DE BILLARD MARSEILLAIS","116557Z"]
[null,"MONTESINOS GILLES","SALON BILLARD CLUB","136279N"]
[null,"MORACCHIOLI VERONIQUE","CLUB BILLARD ISTREEN","180262M"]
[null,"MOREELS BERNARD","BILLARD CLUB GARDEEN","147624L"]
[null,"MORERE JEAN PIERRE","BILLARD CLUB ROQUEBRUNOIS","176019A"]
[null,"MORI KIRWENN","SPORT AMAT.DE BILLARD MARSEILLAIS","193282P"]
[null,"MORLET GABIN","ACADEMIE DE BILLARD DE BARBOSSI MANDELIEU","184898B"]
[null,"MOUMENE AMINE","SPORT AMAT.DE BILLARD MARSEILLAIS","182204Y"]
[null,"MOUREN MAONY","BILLARD CLUB ROGNAC","191785M"]
[null,"MOUSSIER PATRICK","BILLARD CLUB DE NICE","151456B"]
[null,"MOUTIN FERNAND ALAIN","BILLARD CLUB CAVAILLONNAIS","022283B"]
[null,"MUNOS JEAN","BILLARD CLUB SAUSSETOIS","109063T"]
[null,"MUNOS VINCENT","BILLARD CLUB BERROIS","109708O"]
[null,"MUNOZ CHRISTIAN","BILLARD CLUB LA FARE","022284C"]
[null,"MURAILLE ALAIN","BILLARD CLUB PHOCEEN","168135F"]
[null,"N GUYEN NGA","BILLARD CLUB DE NICE","132351L"]
[null,"N GUYEN VAN DUC MAX","BILLARD CLUB BERROIS","141788K"]
[null,"N GUYEN VAN MAO","BILLARD CLUB DE NICE","132333T"]
[null,"NABHANE EMILE","BILLARD CLUB CARPENTRASSIEN","166329S"]
[null,"NAPOLI SALVATORE","BILLARD CLUB CARPENTRASSIEN","107150E"]
[null,"NARBONI PATRICK","BILLARD CLUB DE NICE","013816K"]
[null,"NASICA PATRICK","BILLARD CLUB AVIGNONNAIS","107263N"]
[null,"NATELLA IDA","BILLARD CLUB DE NICE","154573P"]
[null,"NATELLA ROGER","BILLARD CLUB DE NICE","154572N"]
[null,"NAUDIN DIDIER","ACADEMIE DE BILLARD DE BOLLENE","186341V"]
[null,"NAVARROT JEAN JACQUES","ACADEMIE DE BILLARD DE BARBOSSI MANDELIEU","192048Y"]
[null,"NEGOZIO JACKY","BILLARD CLUB ROQUEBRUNOIS","185108E"]
[null,"NERI JACQUES","ACADEMIE DE BILLARD DE BOLLENE","189091J"]
[null,"NESTI MARIO","SPORT AMAT.DE BILLARD MARSEILLAIS","193159F"]
[null,"NEUMANN ERIC","SPORT AMAT.DE BILLARD MARSEILLAIS","188047Z"]
[null,"NGUYEN AHN TUAN","BILLARD CLUB CARPENTRASSIEN","164318G"]
[null,"NICOLAS SAMUEL","BILLARD CLUB AVIGNONNAIS","191911Z"]
[null,"NOEL JEROME","ACADEMIE DE BILLARD DE BARBOSSI MANDELIEU","184016S"]
[null,"NOSSIN MARC","ACADEMIE DE BILLARD DE BARBOSSI MANDELIEU","182190H"]
[null,"NOTEBAERT BENOIT","SPORT AMAT.DE BILLARD MARSEILLAIS","190465C"]
[null,"OLLIVIER DANIEL","CLUB BILLARD ISTREEN","020258E"]
[null,"OUDOUX GERARD","BILLARD CLUB GARDEEN","128468C"]
[null,"OUZEAU VINCENT","BRITISH BILLARD CLUB AVIGNON","124310E"]
[null,"PACZESNY FABRICE","BILLARD CLUB LA FARE","150400D"]
[null,"PASQUIER AUDREY","ACADEMIE DE BILLARD DE BARBOSSI MANDELIEU","192955J"]
[null,"PAU CHRISTINE","BILLARD CLUB SISTERONNAIS","177193B"]
[null,"PEKTAR FIRAT","SPORT AMAT.DE BILLARD MARSEILLAIS","191076R"]
[null,"PELLAT FRANCIS","CLUB BILLARD ISTREEN","141673Z"]
[null,"PERARD MICHEL","ACAD.BILLARD ST RAPHAEL","192209Y"]
[null,"PEREIRA CHARLES","BILLARD CLUB GARDEEN","013896M"]
[null,"PEREZ CHRISTIAN","CLUB BILLARD ISTREEN","130773T"]
[null,"PEREZ JEAN PIERRE","BILLARD CLUB GARDEEN","159241N"]
[null,"PERRIER GILLES","BILLARD CLUB CAVAILLONNAIS","021540M"]
[null,"PERRIN CHRISTOPHE","BILLARD CLUB PHOCEEN","193915C"]
[null,"PERRIN LIONEL","BILLARD CLUB GARDEEN","181624S"]
[null,"PERROUD JEAN FRANCOIS","BILLARD CLUB GARDEEN","187709G"]
[null,"PETIT PHILIPPE","BILLARD CLUB AVIGNONNAIS","179183P"]
[null,"PETIT PHILIPPE","BILLARD CLUB DE NICE","189605S"]
[null,"PHILIPPE CHRISTIAN","BILLARD CLUB SISTERONNAIS","193475Z"]
[null,"PIALLA VALERIE","CLUB BILLARD ISTREEN","182685W"]
[null,"PICARD FRANCK","BILLARD CLUB PHOCEEN","189184K"]
[null,"PICOLLET MANUEL","BILLARD CLUB ROGNAC","129330G"]
[null,"PIELIN PASCAL","SALON BILLARD CLUB","022330W"]
[null,"PIERREE CALYPSO","SPORT AMAT.DE BILLARD MARSEILLAIS","191282Q"]
[null,"PIGNATEL FLORENT","BILLARD CLUB CAVAILLONNAIS","112316W"]
[null,"PIGNOL ARNAUD","BILLARD CLUB AVIGNONNAIS","194071X"]
[null,"PILAVDJIAN JACQUES","BILLARD CLUB PHOCEEN","165118B"]
[null,"PINARD PATRICE","SALON BILLARD CLUB","105404A"]
[null,"PINNA ALAIN","BILLARD CLUB PHOCEEN","022332Y"]
[null,"PIRO COUDERC MARIE LAURE","BILLARD CLUB SISTERONNAIS","177205P"]
[null,"POIRIER DOMINIQUE","ACAD.BILLARD ST RAPHAEL","108010G"]
[null,"POIRMEUR CLAUDE","BILLARD CLUB AVIGNONNAIS","168016B"]
[null,"POLI ANTOINE","ACADEMIE DE BILLARD DE BARBOSSI MANDELIEU","178351K"]
[null,"POLYNICE ROLLAND","BILLARD CLUB DE NICE","178696K"]
[null,"PONT CEDRIC","SPORT AMAT.DE BILLARD MARSEILLAIS","183247G"]
[null,"PORA JEAN PAUL","CLUB BILLARD ISTREEN","170697Q"]
[null,"PORTET PATRICK","BILLARD CLUB ROQUEBRUNOIS","181316H"]
[null,"POUGIN JEAN FRANCOIS","BILLARD CLUB ROQUEBRUNOIS","022346M"]
[null,"POUJOL JEAN PAUL","BILLARD CLUB AVIGNONNAIS","022347N"]
[null,"POULAIN FREDERIC","BILLARD CLUB ORANGEOIS","144719D"]
[null,"POURROT DAVID","BRITISH BILLARD CLUB AVIGNON","116550S"]
[null,"POZNANSKI JEAN MICHEL","SALON BILLARD CLUB","022349P"]
[null,"PREVOT DELPHINE","BILLARD CLUB DE NICE","189657Z"]
[null,"PREVOT GABRIEL","BILLARD CLUB DE NICE","178400N"]
[null,"PREVOT OLIVIER","BILLARD CLUB DE NICE","178399M"]
[null,"PROFIT GILBERT","BILLARD CLUB DE NICE","143885B"]
[null,"PUICHAULT REMY","BILLARD CLUB SISTERONNAIS","172219V"]
[null,"PURIFICATO JULIEN","SPORT AMAT.DE BILLARD MARSEILLAIS","191728A"]
[null,"QRIROU AYOUB","BRITISH BILLARD CLUB AVIGNON","189665H"]
[null,"QUARTO LARA","BILLARD CLUB DE NICE","174009Q"]
[null,"QUEZEL ANDRE","BILLARD CLUB AVIGNONNAIS","136544S"]
[null,"RAMAROSON HERIZO","SPORT AMAT.DE BILLARD MARSEILLAIS","182722L"]
[null,"RAMBAUD GILLES","BILLARD CLUB AVIGNONNAIS","179184Q"]
[null,"RAMOND JEAN MARC","ACADEMIE DE BILLARD DE BARBOSSI MANDELIEU","022357X"]
[null,"RANC ALAIN","ACADEMIE DE BILLARD DE BOLLENE","136205R"]
[null,"RAQQAS SIF EDDINE MOHAMED","SPORT AMAT.DE BILLARD MARSEILLAIS","139577J"]
[null,"RATAJEZAK PASCAL","BILLARD CLUB ROQUEBRUNOIS","192339P"]
[null,"RAVENET FRANCIS","BILLARD CLUB ROQUEBRUNOIS","157788J"]
[null,"RAVERDINO MICHEL","BILLARD CLUB DE NICE","120280E"]
[null,"RECASENS PATRICK","BILLARD CLUB DE NICE","168064D"]
[null,"RENAUD JEAN PAUL","CLUB BILLARD ISTREEN","133622I"]
[null,"REVALOR MICHEL","BILLARD CLUB SAUSSETOIS","119696S"]
[null,"REVELLIN CHRISTIAN","BILLARD CLUB AVIGNONNAIS","183164R"]
[null,"RIBOLLA PATRICE","BILLARD CLUB DE NICE","022366G"]
[null,"RICCI PATRICK","BILLARD CLUB CARPENTRASSIEN","190607G"]
[null,"RICHARD GUY","BILLARD CLUB GARDEEN","022367H"]
[null,"RICHIER PHILIPPE","BILLARD CLUB AVIGNONNAIS","178734B"]
[null,"RIGNOLS PHILIPPE","BILLARD CLUB CAVAILLONNAIS","022372M"]
[null,"RIGOLLET PIERRE","BILLARD CLUB SISTERONNAIS","023064C"]
[null,"RIOT STEPHANE","BRITISH BILLARD CLUB AVIGNON","178015V"]
[null,"RIVIER PATRICE","BILLARD CLUB PHOCEEN","170733E"]
[null,"RIVIERE CORINNE","BILLARD CLUB AVIGNONNAIS","181892J"]
[null,"ROBBE RAYMOND","CLUB BILLARD ISTREEN","134183X"]
[null,"ROBERT DOMINIQUE","BILLARD CLUB DE NICE","022376Q"]
[null,"ROBIC PIERRE MARIE","BILLARD CLUB AVIGNONNAIS","194083K"]
[null,"ROBIN GERARD","BILLARD CLUB CAVAILLONNAIS","193907T"]
[null,"ROBIN JEAN FRANCOIS","BILLARD CLUB DE NICE","143938C"]
[null,"ROCCA JEAN","BILLARD CLUB PHOCEEN","182388Y"]
[null,"ROCCI BERNARD","BILLARD CLUB CAVAILLONNAIS","164275K"]
[null,"RODRIGUES STEVE","BILLARD CLUB ROGNAC","171160T"]
[null,"ROGER GERARD","BILLARD CLUB CAVAILLONNAIS","134843H"]
[null,"ROHRBASSER PATRICK","BRITISH BILLARD CLUB AVIGNON","133507X"]
[null,"RONSAIN JEAN JACQUES","SALON BILLARD CLUB","166175A"]
[null,"ROUALLAND OLIVIER","BILLARD CLUB DE NICE","192465B"]
[null,"ROUANET CLAUDE","BILLARD CLUB SISTERONNAIS","163166E"]
[null,"ROUBAUD MICHEL","BILLARD CLUB PHOCEEN","191106Z"]
[null,"ROUGON ROBERT","BILLARD CLUB ROGNAC","101518O"]
[null,"ROYER ALAIN","BILLARD CLUB SISTERONNAIS","188120D"]
[null,"RYCKELYNCK LAURENT","BILLARD CLUB CARPENTRASSIEN","121397D"]
[null,"SABAH YVES","S. S. A. B. D AIX EN PROVENCE","153753Y"]
[null,"SAJ PATRICK","BILLARD CLUB PHOCEEN","185637E"]
[null,"SALAMA ALAIN","BILLARD CLUB CAVAILLONNAIS","136546U"]
[null,"SALES THIERRY","ACAD.BILLARD ST RAPHAEL","175174G"]
[null,"SAMUEL CHRISTIAN","BILLARD CLUB GARDEEN","120008S"]
[null,"SANCHEZ PEREZ FRANCISCO","BILLARD CLUB CAVAILLONNAIS","163352G"]
[null,"SANDEAUX JEAN CLEMENT","S. S. A. B. D AIX EN PROVENCE","182824X"]
[null,"SANTAMACIA CHRISTIAN","ACADEMIE DE BILLARD DE MENTON","118666C"]
[null,"SANTIAGO EMMANUEL","BILLARD CLUB CAVAILLONNAIS","118693D"]
[null,"SANTIAGO JEAN JOSEPH","BILLARD CLUB SAUSSETOIS","022391F"]
[null,"SARRALDE LOUIS","BILLARD CLUB CAVAILLONNAIS","014138U"]
[null,"SAUNIER DANIEL","BILLARD CLUB ROGNAC","187864A"]
[null,"SAUVAIRE PHILIPPE","BILLARD CLUB GARDEEN","191133D"]
[null,"SAUVAN HENRY","BILLARD CLUB GARDEEN","164008V"]
[null,"SAVARY PHILIPPE","BILLARD CLUB ROQUEBRUNOIS","174856L"]
[null,"SAVI OLIVIER","BILLARD CLUB SAUSSETOIS","186195L"]
[null,"SAVOIA PATRICK","BILLARD CLUB SAUSSETOIS","113222S"]
[null,"SAVONET VALERIE","BRITISH BILLARD CLUB AVIGNON","127551V"]
[null,"SCHAEFER ERNEST ROBERT","BILLARD CLUB CARPENTRASSIEN","149694L"]
[null,"SCHEMBRI BERNARD","BILLARD CLUB PHOCEEN","187494Y"]
[null,"SCHENK ROBERT","BILLARD CLUB DE NICE","136540O"]
[null,"SCHERTZER LOIC","BILLARD CLUB PHOCEEN","182306J"]
[null,"SCHOU MICHEL","BILLARD CLUB GARDEEN","183292F"]
[null,"SEBAH JEAN PAUL","BILLARD CLUB PHOCEEN","175481Q"]
[null,"SEEBORUTH NIKHIL","SPORT AMAT.DE BILLARD MARSEILLAIS","186463C"]
[null,"SEEMANN MICHAEL","BILLARD CLUB SISTERONNAIS","182883L"]
[null,"SERTILLANGE JEAN PHILIPPE","SPORT AMAT.DE BILLARD MARSEILLAIS","190489D"]
[null,"SICARD GEORGES","BILLARD CLUB SISTERONNAIS","163238H"]
[null,"SICOT JEAN MARIE","BILLARD CLUB CAVAILLONNAIS","101420U"]
[null,"SIDGUI OUSSAMA","SPORT AMAT.DE BILLARD MARSEILLAIS","182206A"]
[null,"SIEBERT LOIC","BILLARD CLUB ORANGEOIS","022411Z"]
[null,"SIEGLER JEAN PIERRE","BILLARD CLUB CARPENTRASSIEN","168834Q"]
[null,"SIMON GERARD","BILLARD CLUB AVIGNONNAIS","010203L"]
[null,"SINANIAN ADAM SANDRINE","BILLARD CLUB PHOCEEN","184221Q"]
[null,"SINANIAN JEAN PAUL","BILLARD CLUB PHOCEEN","022412A"]
[null,"SINANIAN LEA","BILLARD CLUB PHOCEEN","159826Z"]
[null,"SOLARI ANNICK","BILLARD CLUB LA FARE","151274D"]
[null,"SOLTANI OMAR","BILLARD CLUB VINONNAIS","103578U"]
[null,"SOUCHERE JEAN JAQUES","ACADEMIE DE BILLARD DE BOLLENE","191497Z"]
[null,"SPINNLER JEAN LUC","ACADEMIE DE BILLARD DE BOLLENE","165931K"]
[null,"STEINMANN SEBASTIEN","ACAD.BILLARD ST RAPHAEL","020790Q"]
[null,"STEPHAN OLIVIER","BILLARD CLUB SISTERONNAIS","125931N"]
[null,"STERLINGOTS GIL","BILLARD CLUB ROGNAC","187654X"]
[null,"STRAUDO JEAN PIERRE","BILLARD CLUB ROGNAC","179072T"]
[null,"STRAUDO MICHEL","BILLARD CLUB ROGNAC","156278S"]
[null,"SUEUR PASCAL","ACADEMIE DE BILLARD DE BARBOSSI MANDELIEU","165039Q"]
[null,"SURATEAU BERNARD","ACAD.BILLARD ST RAPHAEL","165925D"]
[null,"TARDIEUX LUC","BILLARD CLUB LA FARE","022429R"]
[null,"TARDY JEAN CLAUDE","BILLARD CLUB AVIGNONNAIS","133907H"]
[null,"TARDY PIERRE YVES","ACADEMIE DE BILLARD DE BARBOSSI MANDELIEU","143024Y"]
[null,"TARTING BERNARD","S. S. A. B. D AIX EN PROVENCE","160345N"]
[null,"TAURINES CESSIO TOM","BILLARD CLUB ROGNAC","183512V"]
[null,"TEISSIER REGIS","BILLARD CLUB SISTERONNAIS","193481F"]
[null,"TELOT DOMINIQUE","BILLARD CLUB ROQUEBRUNOIS","123701T"]
[null,"TENART DAVID","BRITISH BILLARD CLUB AVIGNON","192984Q"]
[null,"TEYSSIER SERGE","BILLARD CLUB ROGNAC","132938A"]
[null,"THEVENET JEAN CLAUDE","BILLARD CLUB SISTERONNAIS","014232K"]
[null,"THIBAULT LUCETTE","BILLARD CLUB VINONNAIS","184678M"]
[null,"THIBOUT HERVE","BILLARD CLUB PHOCEEN","186654K"]
[null,"THOMAS MICHEL","ACAD.BILLARD ST RAPHAEL","125937T"]
[null,"THOMAS PHILIPPE","BILLARD CLUB CARPENTRASSIEN","191906T"]
[null,"THOMAS PHILIPPE","BILLARD CLUB GARDEEN","168687F"]
[null,"TIBERT THIERRY","ACADEMIE DE BILLARD DE MENTON","113231B"]
[null,"TICHADOU SAMY","SPORT AMAT.DE BILLARD MARSEILLAIS","186465E"]
[null,"TIMSIT SERGE","BILLARD CLUB GARDEEN","148252T"]
[null,"TOLEDANO ARMAND","BILLARD CLUB PHOCEEN","111163N"]
[null,"TONINI BOSSI LAURENT","SPORT AMAT.DE BILLARD MARSEILLAIS","131820A"]
[null,"TONOLI PASCAL","BILLARD CLUB ROQUEBRUNOIS","022438A"]
[null,"TORCHIO GILBERT","BILLARD CLUB PHOCEEN","184495N"]
[null,"TORES JEAN LUC","CLUB BILLARD ISTREEN","135554Q"]
[null,"TORRES GILLES","ACADEMIE DE BILLARD DE BARBOSSI MANDELIEU","191122R"]
[null,"TOUATI WILLIAM","SPORT AMAT.DE BILLARD MARSEILLAIS","186455T"]
[null,"TOUATI YOUSSEF","SPORT AMAT.DE BILLARD MARSEILLAIS","192897W"]
[null,"TOULLEC DANIEL","BILLARD CLUB ROQUEBRUNOIS","177643Q"]
[null,"TOURE MADOU","SPORT AMAT.DE BILLARD MARSEILLAIS","014256I"]
[null,"TOUREILLE ALAIN","BILLARD CLUB SISTERONNAIS","139062O"]
[null,"TRAN DINH VUONG","SPORT AMAT.DE BILLARD MARSEILLAIS","131929F"]
[null,"TRAN KEVIN","SPORT AMAT.DE BILLARD MARSEILLAIS","022443F"]
[null,"TRETOUT YANNICK","ACAD.BILLARD ST RAPHAEL","191885W"]
[null,"TURPIN JEAN","S. S. A. B. D AIX EN PROVENCE","172679V"]
[null,"TURUBAN MICHEL","BILLARD CLUB GARDEEN","149445Q"]
[null,"UNVER BURHAN","SPORT AMAT.DE BILLARD MARSEILLAIS","187563Y"]
[null,"VALENSI GERARD","BILLARD CLUB PHOCEEN","022453P"]
[null,"VALENSI YOHANN","SPORT AMAT.DE BILLARD MARSEILLAIS","022454Q"]
[null,"VALETTE SYLVAIN","BILLARD CLUB GARDEEN","177654C"]
[null,"VALLEE JEAN FRANCOIS","BILLARD CLUB AVIGNONNAIS","178731Y"]
[null,"VALLETTE PHILIPPE","ACADEMIE DE BILLARD DE BOLLENE","171874V"]
[null,"VALSOT PHILIPPE","ACAD.BILLARD ST RAPHAEL","191932X"]
[null,"VALVERDE JEAN YVES","BILLARD CLUB GARDEEN","153163G"]
[null,"VAN GOOL FRANS","ACADEMIE DE BILLARD DE BARBOSSI MANDELIEU","170621H"]
[null,"VAN OVERSTRAETEN JULIEN","SPORT AMAT.DE BILLARD MARSEILLAIS","186462B"]
[null,"VAUTRIN JEAN","BILLARD CLUB DE NICE","022459V"]
[null,"VENTURINO JEAN PIERRE","BILLARD CLUB GARDEEN","192720D"]
[null,"VERGNES ERIC","BRITISH BILLARD CLUB AVIGNON","191030R"]
[null,"VIAN MORGAN","BRITISH BILLARD CLUB AVIGNON","166670N"]
[null,"VICTOR DANIEL","BILLARD CLUB DE LA BAIE","147412F"]
[null,"VIDAL RENE BERNARD","BILLARD CLUB VINONNAIS","181240A"]
[null,"VIERA MAIA ARLINDO","ACAD.BILLARD ST RAPHAEL","148051A"]
[null,"VIGNE PHILIPPE","BILLARD CLUB AVIGNONNAIS","014327B"]
[null,"VILLAIN JEAN PIERRE","BILLARD CLUB AVIGNONNAIS","181891H"]
[null,"VILLASEVIL ANTONIO","BILLARD CLUB BERROIS","101485H"]
[null,"VIOU GERARD","BILLARD CLUB LA FARE","147607S"]
[null,"VIRET FLORENCE","BRITISH BILLARD CLUB AVIGNON","192639Q"]
[null,"VISCONTI JEAN","BILLARD CLUB ROGNAC","138731V"]
[null,"VITALIEN PIERRE","BILLARD CLUB ORANGEOIS","119674W"]
[null,"VIVALDI ANDRE","BILLARD CLUB VINONNAIS","022476M"]
[null,"VO DANG HUY","BILLARD CLUB DE NICE","132515T"]
[null,"VOKT CLEO","ACADEMIE DE BILLARD DE BARBOSSI MANDELIEU","171699E"]
[null,"VUILLAUME JEAN CLAUDE","BILLARD CLUB DE NICE","154571M"]
[null,"WALLON PATRICK","ACADEMIE DE BILLARD DE BOLLENE","176943E"]
[null,"WARLET JEAN CLAUDE","ACAD.BILLARD ST RAPHAEL","117872O"]
[null,"WILLAME PHILIPPE","S. S. A. B. D AIX EN PROVENCE","152534Y"]
[null,"WIRTH HUGO","SPORT AMAT.DE BILLARD MARSEILLAIS","186649E"]
[null,"WOLFF MAXIME","SPORT AMAT.DE BILLARD MARSEILLAIS","182608M"]
[null,"WYNIGER ERIC","BILLARD CLUB AVIGNONNAIS","172921H"]
[null,"WYNIGER MARC","BILLARD CLUB AVIGNONNAIS","172922J"]
[null,"XUEREF JEAN MARIE","BILLARD CLUB DE LA BAIE","152049W"]
[null,"YVOZ ALAIN","BILLARD CLUB CARPENTRASSIEN","184288N"]
[null,"ZANDRINO ALAIN","BILLARD CLUB BERROIS","134311V"]
[null,"ZOPPI AIME","BILLARD CLUB GARDEEN","144788U"]
[null,"ZOPPI CEDRIC","BILLARD CLUB GARDEEN","125457H"]
[null,"ZOUARI SAMY","SPORT AMAT.DE BILLARD MARSEILLAIS","184338S"]

{"sheet":"Données","index":1,"n_rows":31,"n_cols":13,"rows_kept":31,"cut":false,"hidden":true,"merged":[]}
["Compétition","Mode de jeu","Catégorie",null,null,null,null,null,null,"Clubs (sans espaces)"]
["Finale Dept","Libre","Masters",null,null,null,null,null,"19061--ACAD.BILLARD ST RAPHAEL",{"$f":"TRIM(I2)","v":"19061--ACAD.BILLARD ST RAPHAEL"},"PROMENADE RENE COTY",null,"83700 ST RAPHAEL"]
["Finale District","Cadre","Nationale 1",null,null,null,null,null,"19027--ACADEMIE DE BILLARD DE BOLLENE",{"$f":"TRIM(I3)","v":"19027--ACADEMIE DE BILLARD DE BOLLENE"},"GROUPE SCOLAIRE PIERRE MARIE CURIE",null,"84500 BOLLENE"]
["FinaleLigue","1 Bande","Nationale 2",null,null,null,null,null,"19055--ACADEMIE DE BILLARD DE MENTON","19055--ACADEMIE DE BILLARD DE MENTON","Académie municipale de billard","Allée du Louvre Salon du Louvre","06500 MENTON"]
[null,"3 Bandes","Nationale 3",null,null,null,null,null,"19001--S. S. A. B. D AIX EN PROVENCE","19001--S. S. A. B. D AIX EN PROVENCE","RUE PIERRE DE COUBERTIN",null,"13100 AIX EN PROVENCE"]
[null,"Autres","Régionale 1",null,null,null,null,null,"19090--BILLARD AMATEUR ROGNAC","19090--BILLARD AMATEUR ROGNAC","60 BOULEVARD JEAN JAURES",null,"13340 ROGNAC"]
[null,null,"Régionale 2",null,null,null,null,null,"19014--BILLARD CLUB AVIGNONNAIS","19014--BILLARD CLUB AVIGNONNAIS","12 RUE BONAPARTE","MAISON DU COMBATTANT","84000 AVIGNON"]
["Format billard",null,"Régionale 3",null,null,null,null,null,"19007--BILLARD CLUB BERROIS","19007--BILLARD CLUB BERROIS","RUE MARCEL PAGNOL",null,"13130 BERRE L'ETANG"]
["2,80m ",null,"Régionale 4",null,null,null,null,null,"19006--BILLARD CLUB CARPENTRASSIEN","19006--BILLARD CLUB CARPENTRASSIEN","264 BOULEVARD ALBIN DURAND",null,"84200 CARPENTRAS"]
["2,80m ",null,"Dame",null,null,null,null,null,"19021--BILLARD CLUB CAVAILLONNAIS","19021--BILLARD CLUB CAVAILLONNAIS","CERCLE DE L INDEPENDANCE","97 COURS VICTOR HUGO","84300 CAVAILLON"]
["3,10m",null,"Juniors",null,null,null,null,null,"19008--BRITISH BILLARD CLUB AVIGNON","19008--BRITISH BILLARD CLUB AVIGNON","2 Boulevard de Metz",null,"84000 AVIGNON"]
["42/2",null,"Cadet",null,null,null,null,null,"19019--BILLARD CLUB DE LA BAIE","19019--BILLARD CLUB DE LA BAIE","SALLE OTTAVI","AVENUE DES ALLIES","83240 CAVALAIRE SUR MER"]
["47/2",null,null,null,null,null,null,null,"19058--ACADEMIE DE BILLARD DE BARBOSSI MANDELIEU","19058--ACADEMIE DE BILLARD DE BARBOSSI MANDELIEU","23 Chemin de Maures-Viel","Domaine de Barbossi","06210 MANDELIEU LA NAPOULE"]
["2,80m PC","Forfaits","Distances",null,null,null,null,null,"19056--BILLARD CLUB DE NICE","19056--BILLARD CLUB DE NICE","SALLE MALATESTA","64 AVENUE CYRILLE BESSET","06100 NICE"]
["2,80m GC","Excusé","10 pts",null,null,null,null,null,"19098--BILLARD CLUB LA FARE","19098--BILLARD CLUB LA FARE","36 BIS AVENUE PASTEUR",null,"13580 LA FARE LES OLIVIERS"]
[null,"Non excusé","20 pts",null,null,null,null,null,"19023--BILLARD CLUB GARDEEN","19023--BILLARD CLUB GARDEEN","LE MAS QUARTIER SAINTE MARGUERITE","293 AVENUE PIERRE LOTI","83130 LA GARDE"]
[null,"Reprises","30 pts",null,null,null,null,null,"19016--BILLARD CLUB ORANGEOIS","19016--BILLARD CLUB ORANGEOIS","MAISON DES ASSOCIATIONS","ROUTE DE CADEROUSSE","84100 ORANGE"]
[null,"10 rep","35 pts",null,null,null,null,null,"19017--BILLARD CLUB PHOCEEN","19017--BILLARD CLUB PHOCEEN","12 rue du docteur ACQUAVIVA",null,"13004 MARSEILLE"]
["Points","15 rep","40 pts",null,null,null,null,null,"19059--BILLARD CLUB ROQUEBRUNOIS","19059--BILLARD CLUB ROQUEBRUNOIS","44 avenue Gabriel Péri",null,"83520 ROQUEBRUNE SUR ARGENS"]
[2,"20 rep","50 pts",null,null,null,null,null,"19012--SALON BILLARD CLUB","19012--SALON BILLARD CLUB","CERCLE DES ARTS","RUE DES FILEUSES DE SOIE","13300 SALON DE PROVENCE"]
[1,"25 rep","60 pts",null,null,null,null,null,"19050--BILLARD CLUB SAUSSETOIS","19050--BILLARD CLUB SAUSSETOIS","PARC MUNICIPAL DES LOISIRS","31 AVENUE DE LA COTE BLEUE","13960 SAUSSET LES PINS"]
[0,"30 rep","70 pts",null,null,null,null,null,"19025--BILLARD CLUB SISTERONNAIS","19025--BILLARD CLUB SISTERONNAIS","73 AVENUE DE LA DURANCE","SALLE OMNISPORT DANIEL MAFFREN","04200 SISTERON"]
[null,"35 rep","80 pts",null,null,null,null,null,"19106--BILLARD CLUB VINONNAIS","19106--BILLARD CLUB VINONNAIS","480 RUE DES ENTREPRENEURS","ZA DU PAS DE MENC","83560 VINON SUR VERDON"]
[null,"40 rep","100 pts",null,null,null,null,null,"19009--CLUB BILLARD ISTREEN","19009--CLUB BILLARD ISTREEN","HALLE POLYVALENTE PLACE RAOUX","ALLEE DES ECHOPPES","13800 ISTRES"]
[null,"50 rep","120 pts",null,null,null,null,null,"19002--SPORT AMAT.DE BILLARD MARSEILLAIS","19002--SPORT AMAT.DE BILLARD MARSEILLAIS","26 RUE PAVILLON",null,"13001 MARSEILLE"]
[null,"60 rep","150 pts"]
[null,null,"180 pts"]
[null,null,"200 pts"]
[null,null,"250 pts"]
[null,null,"300 pts"]
[null,null,"400 pts"]

{"sheet":"Poule de 6","index":2,"n_rows":40,"n_cols":46,"rows_kept":40,"cut":false,"hidden":false,"merged":[[29,8,31,10],[29,11,31,13],[29,1,31,1],[7,22,7,23],[4,2,5,6],[6,2,6,6],[32,2,32,26],[11,0,13,0],[14,0,16,0],[17,0,19,0],[20,0,22,0],[23,0,25,0],[26,0,28,0],[9,2,9,4],[9,5,9,7],[9,8,9,10],[2,1,9,1],[23,14,25,16],[23,25,25,25],[14,26,16,26],[17,26,19,26],[20,26,22,26],[29,23,29,29],[30,22,31,29],[30,20,31,21],[29,2,31,4],[29,5,31,7],[20,22,22,22],[11,20,13,20],[20,11,22,13],[11,26,13,26],[0,1,0,29],[8,2,8,6],[8,7,8,10],[8,14,8,17],[3,22,3,23],[3,19,3,21],[4,19,4,21],[9,11,9,13],[9,14,9,16],[9,17,9,19],[3,2,3,6],[5,7,5,17],[3,7,3,17],[4,7,4,17],[2,2,2,17],[11,21,13,21],[11,22,13,22],[4,22,4,23],[6,22,6,23],[7,19,7,21],[14,25,16,25],[6,7,6,17],[11,23,13,23],[20,25,22,25],[17,24,19,24],[10,39,10,40],[20,20,22,20],[20,21,22,21],[5,19,5,21],[5,22,5,23],[20,23,22,23],[11,2,13,4],[17,8,19,10],[6,19,6,21],[14,5,16,7],[11,24,13,24],[17,23,19,23],[11,25,13,25],[14,23,16,23],[14,24,16,24],[8,11,8,13],[17,20,19,20],[17,22,19,22],[14,22,16,22],[17,21,19,21],[14,21,16,21],[14,20,16,20],[17,25,19,25],[10,41,10,42],[14,42,16,42],[11,40,13,40],[14,27,16,27],[17,28,19,28],[17,42,19,42],[17,40,19,40],[11,42,13,42],[11,41,13,41],[10,37,10,38],[11,31,11,35],[11,39,13,39],[14,39,16,39],[17,37,19,37],[11,27,13,27],[11,38,13,38],[14,38,16,38],[17,38,19,38],[17,27,19,27],[17,39,19,39],[14,37,16,37],[14,28,16,28],[23,24,25,24],[23,28,25,28],[26,28,28,28],[23,29,25,29],[23,38,25,38],[23,41,25,41],[11,29,13,29],[14,29,16,29],[17,29,19,29],[26,38,28,38],[26,39,28,39],[26,37,28,37],[23,37,25,37],[20,28,22,28],[20,38,22,38],[20,39,22,39],[11,28,13,28],[17,41,19,41],[20,41,22,41],[20,24,22,24],[11,37,13,37],[14,40,16,40],[20,42,22,42],[20,29,22,29],[26,29,28,29],[23,39,25,39],[20,40,22,40],[29,14,31,16],[29,17,31,19],[20,37,22,37],[26,27,28,27],[20,27,22,27],[23,27,25,27],[26,26,28,26],[26,23,28,23],[26,17,28,19],[26,20,28,20],[26,21,28,21],[26,22,28,22],[26,24,28,24],[26,25,28,25],[23,26,25,26],[23,20,25,20],[23,21,25,21],[23,22,25,22],[23,23,25,23],[26,45,28,45],[17,43,19,43],[26,44,28,44],[26,40,28,40],[26,43,28,43],[11,44,13,44],[14,44,16,44],[17,44,19,44],[20,44,22,44],[23,44,25,44],[20,43,22,43],[23,43,25,43],[11,43,13,43],[14,43,16,43],[11,45,13,45],[14,45,16,45],[17,45,19,45],[20,45,22,45],[23,45,25,45],[26,41,28,41],[14,41,16,41],[26,42,28,42],[23,42,25,42],[23,40,25,40]]}
[null,"FINALE de 3 A 6 JOUEURS"]
[]
[null,{"$error":"#VALUE!"},"Lieu de la compétition"]
[null,null,"Nom du club",null,null,null,null,null,null,null,null,null,null,null,null,null,null,null,null,"Mode de jeu"]
[null,null,"Numéro et rue",null,null,null,null,{"$f":"IF(H4<>\"\",VLOOKUP(H4,coordonnees_clubs,3,FALSE),\"\")","v":""},null,null,null,null,null,null,null,null,null,null,null,"Distance"]
[null,null,null,null,null,null,null,{"$f":"IF(H4<>\"\",VLOOKUP(H4,coordonnees_clubs,4,FALSE),\"\")","v":""},null,null,null,null,null,null,null,null,null,null,null,"Nombre Reprises"]
[null,null,"Code postal et commune",null,null,null,null,{"$f":"IF(H4<>\"\",VLOOKUP(H4,coordonnees_clubs,5,FALSE),\"\")","v":""},null,null,null,null,null,null,null,null,null,null,null,"Catégorie"]
[null,null,null,null,null,null,null,null,null,null,null,null,null,null,null,null,null,null,null,"Format Billard"]
[null,null,"Compétition",null,null,null,null,null,null,null,null,"Date",null,null,{"$f":"TODAY()","v":"2026-03-29"}]
[null,null,1,null,null,2,null,null,3,null,null,4,null,null,5,null,null,6]
[null,"Nom  Prénom\nClub\nLicence",{"$f":"IF(B12<>\"\",B12,\"\")","v":""},{"$f":"IF(B13<>\"\",B13,\"\")","v":""},{"$f":"IF(B14<>\"\",B14,\"\")","v":""},{"$f":"IF(B15<>\"\",B15,\"\")","v":""},{"$f":"IF(B16<>\"\",B16,\"\")","v":""},{"$f":"IF(B17<>\"\",B17,\"\")","v":""},{"$f":"IF(B18<>\"\",B18,\"\")","v":""},{"$f":"IF(B19<>\"\",B19,\"\")","v":""},{"$f":"IF(B20<>\"\",B20,\"\")","v":""},{"$f":"IF(B21<>\"\",B21,\"\")","v":""},{"$f":"IF(B22<>\"\",B22,\"\")","v":""},{"$f":"IF(B23<>\"\",B23,\"\")","v":""},{"$f":"IF(B24<>\"\",B24,\"\")","v":""},{"$f":"IF(B25<>\"\",B25,\"\")","v":""},{"$f":"IF(B26<>\"\",B26,\"\")","v":""},{"$f":"IF(B27<>\"\",B27,\"\")","v":""},{"$f":"IF(B28<>\"\",B28,\"\")","v":""},{"$f":"IF(B29<>\"\",B29,\"\")","v":""},"Points","Reprises","Série","Moyenne Générale","Moyenne particulière","Points de match","Classement","Points  classement acquis","Pts ranking obtenus","Total pts classement",null,null,null,null,null,null,null,"Points",null,"MG",null,"MP",null,"Cumul"]
[1,null,"l",null,null,null,null,null,null,null,null,null,null,null,null,null,null,null,null,null,{"$f":"SUM(F12+I12+L12+O12+R12)","v":0},{"$f":"SUM(H12+K12+N12+Q12+T12)","v":0},{"$f":"MAX(F14,I14,L14,O14,R14)","v":0},{"$f":"IF(V12>0,U12/V12,0)","v":0},{"$f":"MAX(AF14:AJ14)","v":0},{"$f":"SUM(G13+J13+M13+P13+S13)","v":0},{"$f":"IF(B12<>\"\",AT12,\"\")","v":""},null,{"$f":"IFERROR(VLOOKUP(AA12,points_ranking,2,FALSE),0)","v":0},{"$f":"Z12+AB12+AC12","v":0},null,"Moyennes particulières",null,null,null,null,null,{"$f":"Z12","v":0},{"$f":"RANK(AL12,$Z$12:$Z$29,0)","v":1},{"$f":"X12","v":0},{"$f":"RANK(AN12,X12:X29)","v":1},{"$f":"Y12","v":0},{"$f":"RANK(AP12,Y12:Y29)","v":1},{"$f":"(AM12*100)+(AO12*10)+(AQ12*1)","v":111},{"$f":"AR12","v":111},{"$f":"RANK(AS12,$AR$12:$AR$29,1)","v":1}]
[null,{"$f":"IF(B12<>\"\",VLOOKUP(B12,JoueursClubsLicences,2,FALSE),\"\")","v":""}]
[null,{"$f":"IF(B12<>\"\",VLOOKUP(B12,JoueursClubsLicences,3,FALSE),\"\")","v":""},null,null,null,null,null,{"$f":"IF(H12>0,F12/H12,\"\")","v":""},null,null,{"$f":"IF(K12>0,I12/K12,\"\")","v":""},null,null,{"$f":"IF(N12>0,L12/N12,\"\")","v":""},null,null,{"$f":"IF(Q12>0,O12/Q12,\"\")","v":""},null,null,{"$f":"IF(T12>0,R12/T12,\"\")","v":""},null,null,null,null,null,null,null,null,null,null,null,{"$f":"IF(G13>1,H14,0)","v":0},{"$f":"IF(J13>1,K14,0)","v":0},{"$f":"IF(M13>1,N14,0)","v":0},{"$f":"IF(P13>1,Q14,0)","v":0},{"$f":"IF(S13>1,T14,0)","v":0}]
[2,null,null,null,{"$f":"H12","v":0},"l",null,null,null,null,null,null,null,null,null,null,null,null,null,null,{"$f":"SUM(C15+I15+L15+O15+R15)","v":0},{"$f":"SUM(E15+K15+N15+Q15+T15)","v":0},{"$f":"MAX(C17,I17,L17,O17,R17)","v":0},{"$f":"IF(V15>0,U15/V15,0)","v":0},{"$f":"MAX(AF17:AJ17)","v":0},{"$f":"SUM(D16+J16+M16+P16+S16)","v":0},{"$f":"IF(B15<>\"\",AT15,\"\")","v":""},null,{"$f":"IFERROR(VLOOKUP(AA15,points_ranking,2,FALSE),0)","v":0},{"$f":"Z15+AB15+AC15","v":0},null,null,null,null,null,null,null,{"$f":"Z15","v":0},{"$f":"RANK(AL15,$Z$12:$Z$29,0)","v":1},{"$f":"X15","v":0},{"$f":"RANK(X15,$X$12:$X$29)","v":1},{"$f":"Y15","v":0},{"$f":"RANK(AP15,Y15:Y32)","v":1},{"$f":"(AM15*100)+(AO15*10)+(AQ15*1)","v":111},{"$f":"AR15","v":111},{"$f":"RANK(AS15,$AR$12:$AR$29,1)","v":1}]
[null,{"$f":"IF(B15<>\"\",VLOOKUP(B15,JoueursClubsLicences,2,FALSE),\"\")","v":""}]
[null,{"$f":"IF(B15<>\"\",VLOOKUP(B15,JoueursClubsLicences,3,FALSE),\"\")","v":""},null,null,{"$f":"IF(E15>0,C15/E15,\"\")","v":""},null,null,null,null,null,{"$f":"IF(K15>0,I15/K15,\"\")","v":""},null,null,{"$f":"IF(N15>0,L15/N15,\"\")","v":""},null,null,{"$f":"IF(Q15>0,O15/Q15,\"\")","v":""},null,null,{"$f":"IF(T15>0,R15/T15,\"\")","v":""},null,null,null,null,null,null,null,null,null,null,null,{"$f":"IF(D16>1,E17,0)","v":0},{"$f":"IF(J16>1,K17,0)","v":0},{"$f":"IF(M16>1,N17,0)","v":0},{"$f":"IF(P16>1,Q17,0)","v":0},{"$f":"IF(S16>1,T17,0)","v":0}]
[3,null,null,null,{"$f":"K12","v":0},null,null,{"$f":"K15","v":0},"l",null,null,null,null,null,null,null,null,null,null,null,{"$f":"SUM(C18+F18+L18+O18+R18)","v":0},{"$f":"SUM(E18+H18+N18+Q18+T18)","v":0},{"$f":"MAX(C20,F20,L20,O20,R20)","v":0},{"$f":"IF(V18>0,U18/V18,0)","v":0},{"$f":"MAX(AF20:AJ20)","v":0},{"$f":"SUM(D19+G19+M19+P19+S19)","v":0},{"$f":"IF(B18<>\"\",AT18,\"\")","v":""},null,{"$f":"IFERROR(VLOOKUP(AA18,points_ranking,2,FALSE),0)","v":0},{"$f":"Z18+AB18+AC18","v":0},null,null,null,null,null,null,null,{"$f":"Z18","v":0},{"$f":"RANK(AL18,$Z$12:$Z$29,0)","v":1},{"$f":"X18","v":0},{"$f":"RANK(X18,$X$12:$X$29)","v":1},{"$f":"Y18","v":0},{"$f":"RANK(AP18,Y18:Y35)","v":1},{"$f":"(AM18*100)+(AO18*10)+(AQ18*1)","v":111},{"$f":"AR18","v":111},{"$f":"RANK(AS18,$AR$12:$AR$29,1)","v":1}]
[null,{"$f":"IF(B18<>\"\",VLOOKUP(B18,JoueursClubsLicences,2,FALSE),\"\")","v":""}]
[null,{"$f":"IF(B18<>\"\",VLOOKUP(B18,JoueursClubsLicences,3,FALSE),\"\")","v":""},null,null,{"$f":"IF(E18>0,C18/E18,\"\")","v":""},null,null,{"$f":"IF(H18>0,F18/H18,\"\")","v":""},null,null,null,null,null,{"$f":"IF(N18>0,L18/N18,\"\")","v":""},null,null,{"$f":"IF(Q18>0,O18/Q18,\"\")","v":""},null,null,{"$f":"IF(T18>0,R18/T18,\"\")","v":""},null,null,null,null,null,null,null,null,null,null,null,{"$f":"IF(D19>1,E20,0)","v":0},{"$f":"IF(G19>1,H20,0)","v":0},{"$f":"IF(M19>1,N20,0)","v":0},{"$f":"IF(P19>1,Q20,0)","v":0},{"$f":"IF(S19>1,T20,0)","v":0}]
[4,null,null,null,{"$f":"N12","v":0},null,null,{"$f":"N15","v":0},null,null,{"$f":"N18","v":0},"l",null,null,null,null,null,null,null,null,{"$f":"SUM(C21+F21+I21+O21+R21)","v":0},{"$f":"SUM(E21+H21+K21+Q21+T21)","v":0},{"$f":"MAX(C23,F23,I23,O23,R23)","v":0},{"$f":"IF(V21>0,U21/V21,0)","v":0},{"$f":"MAX(AF23:AJ23)","v":0},{"$f":"SUM(D22+G22+J22+P22+S22)","v":0},{"$f":"IF(B21<>\"\",AT21,\"\")","v":""},null,{"$f":"IFERROR(VLOOKUP(AA21,points_ranking,2,FALSE),0)","v":0},{"$f":"Z21+AB21+AC21","v":0},null,null,null,null,null,null,null,{"$f":"Z21","v":0},{"$f":"RANK(AL21,$Z$12:$Z$29,0)","v":1},{"$f":"X21","v":0},{"$f":"RANK(X21,$X$12:$X$29)","v":1},{"$f":"Y21","v":0},{"$f":"RANK(AP21,Y21:Y38)","v":1},{"$f":"(AM21*100)+(AO21*10)+(AQ21*1)","v":111},{"$f":"AR21","v":111},{"$f":"RANK(AS21,$AR$12:$AR$29,1)","v":1}]
[null,{"$f":"IF(B21<>\"\",VLOOKUP(B21,JoueursClubsLicences,2,FALSE),\"\")","v":""}]
[null,{"$f":"IF(B21<>\"\",VLOOKUP(B21,JoueursClubsLicences,3,FALSE),\"\")","v":""},null,null,{"$f":"IF(E21>0,C21/E21,\"\")","v":""},null,null,{"$f":"IF(H21>0,F21/H21,\"\")","v":""},null,null,{"$f":"IF(K21>0,I21/K21,\"\")","v":""},null,null,null,null,null,{"$f":"IF(Q21>0,O21/Q21,\"\")","v":""},null,null,{"$f":"IF(T21>0,R21/T21,\"\")","v":""},null,null,null,null,null,null,null,null,null,null,null,{"$f":"IF(D22>1,E23,0)","v":0},{"$f":"IF(G22>1,H23,0)","v":0},{"$f":"IF(J22>1,K23,0)","v":0},{"$f":"IF(P22>1,Q23,0)","v":0},{"$f":"IF(S22>1,T23,0)","v":0}]
[5,null,null,null,{"$f":"Q12","v":0},null,null,{"$f":"Q15","v":0},null,null,{"$f":"Q18","v":0},null,null,{"$f":"Q21","v":0},"l",null,null,null,null,null,{"$f":"SUM(C24+F24+I24+L24+R24)","v":0},{"$f":"SUM(E24+H24+K24+N24+T24)","v":0},{"$f":"MAX(C26,F26,I26,L26,R26)","v":0},{"$f":"IF(V24>0,U24/V24,0)","v":0},{"$f":"MAX(AF26:AJ26)","v":0},{"$f":"SUM(D25+G25+J25+M25+S25)","v":0},{"$f":"IF(B24<>\"\",AT24,\"\")","v":""},null,{"$f":"IFERROR(VLOOKUP(AA24,points_ranking,2,FALSE),0)","v":0},{"$f":"Z24+AB24+AC24","v":0},null,null,null,null,null,null,null,{"$f":"Z24","v":0},{"$f":"RANK(AL24,$Z$12:$Z$29,0)","v":1},{"$f":"X24","v":0},{"$f":"RANK(X24,$X$12:$X$29)","v":1},{"$f":"Y24","v":0},{"$f":"RANK(AP24,Y24:Y41)","v":1},{"$f":"(AM24*100)+(AO24*10)+(AQ24*1)","v":111},{"$f":"AR24","v":111},{"$f":"RANK(AS24,$AR$12:$AR$29,1)","v":1}]
[null,{"$f":"IF(B24<>\"\",VLOOKUP(B24,JoueursClubsLicences,2,FALSE),\"\")","v":""}]
[null,{"$f":"IF(B24<>\"\",VLOOKUP(B24,JoueursClubsLicences,3,FALSE),\"\")","v":""},null,null,{"$f":"IF(E24>0,C24/E24,\"\")","v":""},null,null,{"$f":"IF(H24>0,F24/H24,\"\")","v":""},null,null,{"$f":"IF(K24>0,I24/K24,\"\")","v":""},null,null,{"$f":"IF(N24>0,L24/N24,\"\")","v":""},null,null,null,null,null,{"$f":"IF(T24>0,R24/T24,\"\")","v":""},null,null,null,null,null,null,null,null,null,null,null,{"$f":"IF(D25>1,E26,0)","v":0},{"$f":"IF(G25>1,H26,0)","v":0},{"$f":"IF(J25>1,K26,0)","v":0},{"$f":"IF(M25>1,N26,0)","v":0},{"$f":"IF(S25>1,T26,0)","v":0}]
[6,null,null,null,{"$f":"T12","v":0},null,null,{"$f":"T15","v":0},null,null,{"$f":"T18","v":0},null,null,{"$f":"T21","v":0},null,null,{"$f":"T24","v":0},"l",null,null,{"$f":"SUM(C27+F27+I27+L27+O27)","v":0},{"$f":"SUM(E27+H27+K27+N27+Q27)","v":0},{"$f":"MAX(C29,F29,I29,L29,O29)","v":0},{"$f":"IF(V27>0,U27/V27,0)","v":0},{"$f":"MAX(AF29:AJ29)","v":0},{"$f":"SUM(D28+G28+J28+M28+P28)","v":0},{"$f":"IF(B27<>\"\",AT27,\"\")","v":""},null,{"$f":"IFERROR(VLOOKUP(AA27,points_ranking,2,FALSE),0)","v":0},{"$f":"Z27+AB27+AC27","v":0},null,null,null,null,null,null,null,{"$f":"Z27","v":0},{"$f":"RANK(AL27,$Z$12:$Z$29,0)","v":1},{"$f":"X27","v":0},{"$f":"RANK(X27,$X$12:$X$29)","v":1},{"$f":"Y27","v":0},{"$f":"RANK(AP27,Y27:Y44)","v":1},{"$f":"(AM27*100)+(AO27*10)+(AQ27*1)","v":111},{"$f":"AR27","v":111},{"$f":"RANK(AS27,$AR$12:$AR$29,1)","v":1}]
[null,{"$f":"IF(B27<>\"\",VLOOKUP(B27,JoueursClubsLicences,2,FALSE),\"\")","v":""}]
[null,{"$f":"IF(B27<>\"\",VLOOKUP(B27,JoueursClubsLicences,3,FALSE),\"\")","v":""},null,null,{"$f":"IF(E27>0,C27/E27,\"\")","v":""},null,null,{"$f":"IF(H27>0,F27/H27,\"\")","v":""},null,null,{"$f":"IF(K27>0,I27/K27,\"\")","v":""},null,null,{"$f":"IF(N27>0,L27/N27,\"\")","v":""},null,null,{"$f":"IF(Q27>0,O27/Q27,\"\")","v":""},null,null,null,null,null,null,null,null,null,null,null,null,null,null,{"$f":"IF(D28>1,E29,0)","v":0},{"$f":"IF(G28>1,H29,0)","v":0},{"$f":"IF(J28>1,K29,0)","v":0},{"$f":"IF(M28>1,N29,0)","v":0},{"$f":"IF(P28>1,Q29,0)","v":0}]
["Version A.FERHAT","Signatures",null,null,null,null,null,null,null,null,null,null,null,null,null,null,null,null,null,null,"Directeur de jeu :"]
["Vs.1",null,null,null,null,null,null,null,null,null,null,null,null,null,null,null,null,null,null,null,"Signature :"]
[{"$f":"TODAY()","v":"2026-03-29"}]
[null,"Version A.FERHAT","ATTENTION : Un joueur forfait ne doit pas figurer sur cette feuille.Les tours de jeu ne seraient plus conformes.",null,null,null,null,null,null,null,null,null,null,null,null,null,null,null,null,null,null,null,null,null,null,null,null,null,null,null,null,"Points de ranking"]
[null,"Vs.1"]
[null,{"$f":"TODAY()","v":"2026-03-29"},null,null,null,null,null,null,null,null,null,null,null,null,null,null,null,null,null,null,null,null,null,null,null,null,null,null,null,null,null,1,22]
[null,null,null,null,null,null,null,null,null,null,null,null,null,null,null,null,null,null,null,null,null,null,null,null,null,null,null,null,null,null,null,2,19]
[null,null,null,null,null,null,null,null,null,null,null,null,null,null,null,null,null,null,null,null,null,null,null,null,null,null,null,null,null,null,null,3,16]
[null,null,null,null,null,null,null,null,null,null,null,null,null,null,null,null,null,null,null,null,null,null,null,null,null,null,null,null,null,null,null,4,14]
[null,null,null,null,null,null,null,null,null,null,null,null,null,null,null,null,null,null,null,null,null,null,null,null,null,null,null,null,null,null,null,5,12]
[null,null,null,null,null,null,null,null,null,null,null,null,null,null,null,null,null,null,null,null,null,null,null,null,null,null,null,null,null,null,null,6,11]

{"sheet":"Tours de jeu","index":3,"n_rows":72,"n_cols":28,"rows_kept":72,"cut":false,"hidden":false,"merged":[[1,3,3,4],[45,3,48,3],[5,12,5,15],[6,13,6,14],[7,13,7,14],[17,3,18,3],[8,13,8,14],[9,3,9,4],[5,3,5,6],[9,13,9,14],[14,12,15,12],[14,3,15,3],[20,3,21,3],[23,3,23,4],[25,3,28,3],[35,6,36,6],[0,0,0,17],[0,26,0,27],[23,20,23,21],[23,23,23,25],[40,12,43,12],[20,12,21,12],[1,17,1,21],[30,3,33,3],[35,3,38,3],[40,3,43,3],[1,26,1,27],[1,23,1,25],[12,3,12,4],[6,4,6,5],[8,4,8,5],[7,4,7,5],[50,4,51,6],[50,15,51,17],[49,22,49,25],[61,22,61,25],[10,12,10,13],[35,12,38,12],[23,12,23,13],[25,12,28,12],[30,12,33,12],[17,12,18,12],[45,12,48,12],[12,12,12,13],[25,4,26,4],[25,6,26,6],[26,8,27,8],[36,8,37,8],[37,6,38,6],[37,4,38,4],[35,4,36,4],[32,6,33,6],[32,4,33,4],[30,6,31,6],[30,4,31,4],[27,4,28,4],[27,6,28,6],[31,8,32,8],[47,4,48,4],[47,6,48,6],[46,8,47,8],[45,6,46,6],[45,4,46,4],[42,4,43,4],[42,6,43,6],[40,6,41,6],[41,8,42,8],[40,4,41,4],[47,17,48,17],[47,15,48,15],[47,13,48,13],[45,17,46,17],[45,15,46,15],[45,13,46,13],[42,13,43,13],[42,15,43,15],[42,17,43,17],[40,17,41,17],[40,15,41,15],[40,13,41,13],[37,13,38,13],[37,15,38,15],[37,17,38,17],[35,17,36,17],[35,15,36,15],[35,13,36,13],[32,13,33,13],[32,15,33,15],[32,17,33,17],[30,17,31,17],[30,15,31,15],[30,13,31,13],[2,7,2,9],[27,13,28,13],[27,15,28,15],[27,17,28,17],[25,17,26,17],[25,15,26,15],[25,13,26,13]]}
["Compétitions disputées sous forme de poule - Organisation des tours de jeu",null,null,null,null,null,null,null,null,null,null,null,null,null,null,null,null,null,null,null,null,null,null,null,null,null,"Les clubs"]
[null,null,null,{"$error":"#VALUE!"}]
[null,null,null,null,null,null,null,"Nombre de joueurs engagés",null,null,null,null,{"$f":"COUNTA('Poule de 6'!B12,'Poule de 6'!B15,'Poule de 6'!B18,'Poule de 6'!B21,'Poule de 6'!B24,'Poule de 6'!B27)","v":0}]
[]
[]
[null,null,null,"Liste des joueurs engagés",null,null,null,null,null,null,null,null,"Liste des joueurs engagés"]
[null,{"$f":"IF(C7=1,\"joueur_1\",\"\")","v":"joueur_1"},{"$f":"IF(OR(E7=E8,E7=E9),1,\"\")","v":1},1,{"$f":"IF($M$3=3,'Poule de 6'!B13,\"\")","v":""},null,{"$f":"IF($M$3=3,'Poule de 6'!B12,\"\")","v":""},null,null,null,{"$f":"RANK(L7,$L$7:$L$10,1)","v":1},{"$f":"IF(OR(N7=N8,N7=N9,N7=N10),1,11)","v":1},1,{"$f":"IF($M$3=4,'Poule de 6'!B13,\"\")","v":""},null,{"$f":"IF($M$3=4,'Poule de 6'!B12,\"\")","v":""}]
[null,{"$f":"IF(C8=2,IF(B7=\"\",\"joueur_1\",\"joueur_2\"),\"\")","v":"joueur_2"},{"$f":"IF(OR(E8=E7,E8=E9),2,\"\")","v":2},2,{"$f":"IF($M$3=3,'Poule de 6'!B16,\"\")","v":""},null,{"$f":"IF($M$3=3,'Poule de 6'!B15,\"\")","v":""},null,null,null,{"$f":"RANK(L8,$L$7:$L$10,1)","v":2},{"$f":"IF(OR(N8=N9,N8=N10,N8=N7),2,12)","v":2},2,{"$f":"IF($M$3=4,'Poule de 6'!B16,\"\")","v":""},null,{"$f":"IF($M$3=4,'Poule de 6'!B15,\"\")","v":""}]
[null,{"$f":"IF(C9=3,\"joueur_2\",\"\")","v":"joueur_2"},{"$f":"IF(OR(E9=E7,E9=E8),3,\"\")","v":3},3,{"$f":"IF($M$3=3,'Poule de 6'!B19,\"\")","v":""},null,{"$f":"IF($M$3=3,'Poule de 6'!B18,\"\")","v":""},null,null,null,{"$f":"RANK(L9,$L$7:$L$10,1)","v":3},{"$f":"IF(OR(N9=N10,N9=N8,N9=N7),3,13)","v":3},3,{"$f":"IF($M$3=4,'Poule de 6'!B19,\"\")","v":""},null,{"$f":"IF($M$3=4,'Poule de 6'!B18,\"\")","v":""}]
[null,null,null,"Joueurs d'un même club",null,null,{"$f":"COUNTIF(C7:C9,\">0\")","v":3},null,null,null,{"$f":"RANK(L10,$L$7:$L$10,1)","v":4},{"$f":"IF(OR(N10=N7,N10=N8,N10=N9),4,14)","v":4},4,{"$f":"IF($M$3=4,'Poule de 6'!B22,\"\")","v":""},null,{"$f":"IF($M$3=4,'Poule de 6'!B21,\"\")","v":""}]
[null,null,null,null,null,null,null,null,null,null,null,null,"Joueurs d'un même club",null,null,{"$f":"COUNTIF(L7:L10,\"<10\")","v":4}]
[]
[null,null,null,"Poule de 3 joueurs",null,null,null,null,null,null,null,null,"Poule de 4 joueurs",null,null,null,null,null,null,null,null,null,null,null,null,null,"19061--ACAD.BILLARD ST RAPHAEL","83700 ST RAPHAEL"]
[null,null,null,null,"Billard unique",null,null,null,null,null,null,null,null,"Billard 1",null,"Billard 2",null,null,null,null,null,null,null,null,null,null,"19027--ACADEMIE DE BILLARD DE BOLLENE","84500 BOLLENE"]
[null,null,null,"Tour n°1",{"$f":"IF(AND(M3=3,G10=2),VLOOKUP(\"joueur_1\",joueurs_engages,6,FALSE),G8)","v":""},null,null,null,null,null,null,null,"Tour n°1",{"$f":"IF(AND(M3=4,P11=2),VLOOKUP(1,meme_club_poule_4,6,FALSE),P8)","v":""},null,{"$f":"IF(AND(M3=4,P11=2),VLOOKUP(3,meme_club_poule_4,6,FALSE),P7)","v":""},null,null,null,null,null,null,null,null,null,null,"19055--ACADEMIE DE BILLARD DE MENTON","06500 MENTON"]
[null,null,null,null,{"$f":"IF(AND(M3=3,G10=2),VLOOKUP(\"joueur_2\",joueurs_engages,6,FALSE),G9)","v":""},null,null,null,null,null,null,null,null,{"$f":"IF(AND(M3=4,P11=2),VLOOKUP(2,meme_club_poule_4,6,FALSE),P9)","v":""},null,{"$f":"IF(AND(M3=4,P11=2),VLOOKUP(4,meme_club_poule_4,6,FALSE),P10)","v":""},null,null,null,null,null,null,null,null,null,null,"19001--S. S. A. B. D AIX EN PROVENCE","13100 AIX EN PROVENCE"]
[null,null,null,null,null,null,null,null,null,null,null,null,null,null,null,null,null,null,null,null,null,null,null,null,null,null,"19090--BILLARD AMATEUR ROGNAC","13340 ROGNAC"]
[null,null,null,"Tour n°2",{"$f":"IF(G10<>2,G7,VLOOKUP(\"\",joueurs_engages,6,FALSE))","v":""},null,null,null,null,null,null,null,"Tour n°2",{"$f":"IF(M3=4,\"Perdant billard 1\",\"\")","v":""},null,{"$f":"IF(M3=4,\"Vainqueur billard 1\",\"\")","v":""},null,null,null,null,null,null,null,null,null,null,"19014--BILLARD CLUB AVIGNONNAIS","83560 VINON SUR VERDON"]
[null,null,null,null,{"$f":"IF(M3=3,\"Perdant du tour n° 1\",\"\")","v":""},null,null,null,null,null,null,null,null,{"$f":"IF(M3=4,\"Perdant billard 2\",\"\")","v":""},null,{"$f":"IF(M3=4,\"Vainqueur billard 2\",\"\")","v":""},null,null,null,null,null,null,null,null,null,null,"19007--BILLARD CLUB BERROIS","13130 BERRE L'ETANG"]
[null,null,null,null,null,null,null,null,null,null,null,null,null,null,null,null,null,null,null,null,null,null,null,null,null,null,"19006--BILLARD CLUB CARPENTRASSIEN","84200 CARPENTRAS"]
[null,null,null,"Tour n°3",{"$f":"IF(G10<>2,G7,VLOOKUP(\"\",joueurs_engages,6,FALSE))","v":""},null,null,null,null,null,null,null,"Tour n°3",{"$f":"P7","v":""},null,{"$f":"P10","v":""},null,null,null,null,null,null,null,null,null,null,"19021--BILLARD CLUB CAVAILLONNAIS","84300 CAVAILLON"]
[null,null,null,null,{"$f":"IF(M3=3,\"Gagnant du tour n° 1\",\"\")","v":""},null,null,null,null,null,null,null,null,{"$f":"IF(M3=4,\"Dernier adversaire\",\"\")","v":""},null,{"$f":"IF(M3=4,\"Dernier adversaire\",\"\")","v":""},null,null,null,null,null,null,null,null,null,null,"19008--BRITISH BILLARD CLUB AVIGNON","84000 AVIGNON"]
[null,null,null,null,null,null,null,null,null,null,null,null,null,null,null,null,null,null,null,null,null,null,null,null,null,null,"19019--BILLARD CLUB DE LA BAIE","83240 CAVALAIRE SUR MER"]
[null,null,null,"Poule de 5 joueurs",null,null,null,null,null,null,null,null,"Poule de 6 joueurs",null,null,null,null,null,null,null,"Poule de 5",null,null,"Poule de 6",null,null,"19058--ACADEMIE DE BILLARD DE BARBOSSI MANDELIEU","06210 MANDELIEU LA NAPOULE"]
[null,null,null,null,"Billard 1",null,"Billard 2",null,"Exempt",null,null,null,null,"Billard 1",null,"Billard 2",null,"Billard 3",null,null,"B1","B2",null,"B1","B2","B3","19056--BILLARD CLUB DE NICE","06100 NICE"]
[null,null,null,{"$f":"IF(M3=5,\"Tour n°1\",\"\")","v":""},{"$f":"IF($M$3=5,'Poule de 6'!B18,\"\")","v":""},null,{"$f":"IF(M3=5,'Poule de 6'!B15,\"\")","v":""},null,null,null,null,null,{"$f":"IF(M3=6,\"Tour n°1\",\"\")","v":""},{"$f":"IF($M$3=6,'Poule de 6'!$B$12,\"\")","v":""},null,{"$f":"IF($M$3=6,'Poule de 6'!$B$15,\"\")","v":""},null,{"$f":"IF($M$3=6,'Poule de 6'!$B$18,\"\")","v":""},null,null,"3 / 4","2 / 5",null,1,2,3,"19098--BILLARD CLUB LA FARE","13580 LA FARE LES OLIVIERS"]
[null,null,null,null,null,null,null,null,{"$f":"IF($M$3=5,'Poule de 6'!B12,\"\")","v":""},null,null,null,null,null,null,null,null,null,null,null,null,null,null,6,5,4,"19023--BILLARD CLUB GARDEEN","83130 LA GARDE"]
[null,null,null,null,{"$f":"IF($M$3=5,'Poule de 6'!B21,\"\")","v":""},{"$f":"IF(E27=E29,1,0)","v":1},{"$f":"IF($M$3=5,'Poule de 6'!B24,\"\")","v":""},{"$f":"IF(G27=G29,1,0)","v":1},null,null,null,null,null,{"$f":"IF($M$3=6,'Poule de 6'!$B$27,\"\")","v":""},{"$f":"IF(N27=N29,1,0)","v":1},{"$f":"IF($M$3=6,'Poule de 6'!$B$24,\"\")","v":""},{"$f":"IF(P27=P29,1,0)","v":1},{"$f":"IF($M$3=6,'Poule de 6'!$B$21,\"\")","v":""},{"$f":"IF(R27=R29,1,0)","v":1},{"$f":"SUM(O28,Q28,S28)","v":3},null,null,null,null,null,null,"19016--BILLARD CLUB ORANGEOIS","84100 ORANGE"]
[null,null,null,null,null,null,null,null,{"$f":"SUM(F28,H28)","v":2},null,null,null,null,null,null,null,null,null,null,null,null,null,null,null,null,null,"19017--BILLARD CLUB PHOCEEN","13004 MARSEILLE"]
[null,null,null,null,null,null,null,null,null,null,null,null,null,null,null,null,null,null,null,null,null,null,null,null,null,null,"19059--BILLARD CLUB ROQUEBRUNOIS","83520 ROQUEBRUNE SUR ARGENS"]
[null,null,null,{"$f":"IF(M3=5,\"Tour n°2\",\"\")","v":""},{"$f":"IF(M3=5,'Poule de 6'!B12,\"\")","v":""},null,{"$f":"IF(M3=5,'Poule de 6'!B15,\"\")","v":""},null,null,null,null,null,{"$f":"IF(M3=6,\"Tour n°2\",\"\")","v":""},{"$f":"IF($M$3=6,'Poule de 6'!$B$15,\"\")","v":""},null,{"$f":"IF($M$3=6,'Poule de 6'!$B$27,\"\")","v":""},null,{"$f":"IF($M$3=6,'Poule de 6'!$B$12,\"\")","v":""},null,null,"1 / 5","2 / 3 ",null,2,6,1,"19012--SALON BILLARD CLUB","13300 SALON DE PROVENCE"]
[null,null,null,null,null,null,null,null,{"$f":"IF(M3=5,'Poule de 6'!B21,\"\")","v":""},null,null,null,null,null,null,null,null,null,null,null,null,null,null,3,4,5,"19050--BILLARD CLUB SAUSSETOIS","13960 SAUSSET LES PINS"]
[null,null,null,null,{"$f":"IF($M$3=5,'Poule de 6'!B24,\"\")","v":""},{"$f":"IF(E32=E34,1,0)","v":1},{"$f":"IF($M$3=5,'Poule de 6'!B18,\"\")","v":""},{"$f":"IF(G32=G34,1,0)","v":1},null,null,null,null,null,{"$f":"IF($M$3=6,'Poule de 6'!$B$18,\"\")","v":""},{"$f":"IF(N32=N34,1,0)","v":1},{"$f":"IF($M$3=6,'Poule de 6'!$B$21,\"\")","v":""},{"$f":"IF(P32=P34,1,0)","v":1},{"$f":"IF($M$3=6,'Poule de 6'!$B$24,\"\")","v":""},{"$f":"IF(R32=R34,1,0)","v":1},{"$f":"SUM(O33,Q33,S33)","v":3},null,null,null,null,null,null,"19025--BILLARD CLUB SISTERONNAIS","04200 SISTERON"]
[null,null,null,null,null,null,null,null,{"$f":"SUM(F33,H33)","v":2},null,null,null,null,null,null,null,null,null,null,null,null,null,null,null,null,null,"19106--BILLARD CLUB VINONNAIS","84000 AVIGNON "]
[null,null,null,null,null,null,null,null,null,null,null,null,null,null,null,null,null,null,null,null,null,null,null,null,null,null,"19009--CLUB BILLARD ISTREEN","13800 ISTRES"]
[null,null,null,{"$f":"IF(M3=5,\"Tour n°3\",\"\")","v":""},{"$f":"IF($M$3=5,'Poule de 6'!B18,\"\")","v":""},null,{"$f":"IF(M3=5,'Poule de 6'!B12,\"\")","v":""},null,null,null,null,null,{"$f":"IF(M3=6,\"Tour n°3\",\"\")","v":""},{"$f":"IF($M$3=6,'Poule de 6'!$B$12,\"\")","v":""},null,{"$f":"IF($M$3=6,'Poule de 6'!$B$24,\"\")","v":""},null,{"$f":"IF($M$3=6,'Poule de 6'!$B$27,\"\")","v":""},null,null,"3 / 5","1 / 4",null,1,5,6,"19002--SPORT AMAT.DE BILLARD MARSEILLAIS","13001 MARSEILLE"]
[null,null,null,null,null,null,null,null,{"$f":"IF(M3=5,'Poule de 6'!B15,\"\")","v":""},null,null,null,null,null,null,null,null,null,null,null,null,null,null,4,3,2]
[null,null,null,null,{"$f":"IF($M$3=5,'Poule de 6'!B24,\"\")","v":""},{"$f":"IF(E37=E39,1,0)","v":1},{"$f":"IF(M3=5,'Poule de 6'!B21,\"\")","v":""},{"$f":"IF(G37=G39,1,0)","v":1},null,null,null,null,null,{"$f":"IF($M$3=6,'Poule de 6'!$B$21,\"\")","v":""},{"$f":"IF(N37=N39,1,0)","v":1},{"$f":"IF($M$3=6,'Poule de 6'!$B$18,\"\")","v":""},{"$f":"IF(P37=P39,1,0)","v":1},{"$f":"IF($M$3=6,'Poule de 6'!$B$15,\"\")","v":""},{"$f":"IF(R37=R39,1,0)","v":1},{"$f":"SUM(O38,Q38,S38)","v":3}]
[null,null,null,null,null,null,null,null,{"$f":"SUM(F38,H38)","v":2}]
[]
[null,null,null,{"$f":"IF(M3=5,\"Tour n°4\",\"\")","v":""},{"$f":"IF($M$3=5,'Poule de 6'!B15,\"\")","v":""},null,{"$f":"IF(M3=5,'Poule de 6'!B12,\"\")","v":""},null,null,null,null,null,{"$f":"IF(M3=6,\"Tour n°4\",\"\")","v":""},{"$f":"IF($M$3=6,'Poule de 6'!$B$24,\"\")","v":""},null,{"$f":"IF($M$3=6,'Poule de 6'!$B$12,\"\")","v":""},null,{"$f":"IF($M$3=6,'Poule de 6'!$B$21,\"\")","v":""},null,null,"2 / 4","1 / 3",null,5,1,4]
[null,null,null,null,null,null,null,null,{"$f":"IF(M3=5,'Poule de 6'!B24,\"\")","v":""},null,null,null,null,null,null,null,null,null,null,null,null,null,null,6,3,2]
[null,null,null,null,{"$f":"IF($M$3=5,'Poule de 6'!B21,\"\")","v":""},{"$f":"IF(E42=E44,1,0)","v":1},{"$f":"IF($M$3=5,'Poule de 6'!B18,\"\")","v":""},{"$f":"IF(G42=G44,1,0)","v":1},null,null,null,null,null,{"$f":"IF($M$3=6,'Poule de 6'!$B$27,\"\")","v":""},{"$f":"IF(N42=N44,1,0)","v":1},{"$f":"IF($M$3=6,'Poule de 6'!$B$18,\"\")","v":""},{"$f":"IF(P42=P44,1,0)","v":1},{"$f":"IF($M$3=6,'Poule de 6'!$B$15,\"\")","v":""},{"$f":"IF(R42=R44,1,0)","v":1},{"$f":"SUM(O43,Q43,S43)","v":3}]
[null,null,null,null,null,null,null,null,{"$f":"SUM(F43,H43)","v":2}]
[]
[null,null,null,{"$f":"IF(M3=5,\"Tour n°5\",\"\")","v":""},{"$f":"IF($M$3=5,'Poule de 6'!B12,\"\")","v":""},null,{"$f":"IF(M3=5,'Poule de 6'!B21,\"\")","v":""},null,null,null,null,null,{"$f":"IF(M3=6,\"Tour n°5\",\"\")","v":""},{"$f":"IF($M$3=6,'Poule de 6'!$B$21,\"\")","v":""},null,{"$f":"IF($M$3=6,'Poule de 6'!$B$12,\"\")","v":""},null,{"$f":"IF($M$3=6,'Poule de 6'!$B$18,\"\")","v":""},null,null,"1 / 2","4 / 5",null,4,1,3]
[null,null,null,null,null,null,null,null,{"$f":"IF($M$3=5,'Poule de 6'!B18,\"\")","v":""},null,null,null,null,null,null,null,null,null,null,null,null,null,null,5,2,6]
[null,null,null,null,{"$f":"IF(M3=5,'Poule de 6'!B15,\"\")","v":""},{"$f":"IF(E47=E49,1,0)","v":1},{"$f":"IF($M$3=5,'Poule de 6'!B24,\"\")","v":""},{"$f":"IF(G47=G49,1,0)","v":1},null,null,null,null,null,{"$f":"IF($M$3=6,'Poule de 6'!$B$24,\"\")","v":""},{"$f":"IF(N47=N49,1,0)","v":1},{"$f":"IF($M$3=6,'Poule de 6'!$B$15,\"\")","v":""},{"$f":"IF(P47=P49,1,0)","v":1},{"$f":"IF($M$3=6,'Poule de 6'!$B$27,\"\")","v":""},{"$f":"IF(R47=R49,1,0)","v":1},{"$f":"SUM(O48,Q48,S48)","v":3}]
[null,null,null,null,null,null,null,null,{"$f":"SUM(F48,H48)","v":2}]
[null,null,null,null,null,null,null,null,null,null,null,null,null,null,null,null,null,null,null,null,null,null,"Poule de 5 - Tours de jeu"]
[null,null,null,null,"POULE de 5 - Ordre des tours de jeu",null,null,null,null,null,null,null,null,null,null,"POULE de 6 - Ordre des tours de jeu",null,null,null,null,null,null,{"$f":"IF(Z51<>\"\",RANK(Z51,Z$51:$Z$60,TRUE),\"\")","v":""},1,{"$f":"IF(I29>0,D26,\"\")","v":""},{"$f":"IF(Y51<>\"\",X51,\"\")","v":""}]
[null,null,null,null,null,null,null,null,null,null,null,null,null,null,null,null,null,null,null,null,null,null,{"$f":"IF(Z52<>\"\",RANK(Z52,Z$51:$Z$60,TRUE),\"\")","v":""},2,{"$f":"IF(I34>0,D31,\"\")","v":""},{"$f":"IF(Y52<>\"\",X52,\"\")","v":""}]
[null,null,null,null,1,null,{"$f":"IFERROR(VLOOKUP(1,ordre_des_tours_p5,3,FALSE),\"\")","v":""},null,null,null,null,null,null,null,null,1,null,{"$f":"IFERROR(VLOOKUP(1,ordre_des_tours_p6,3,FALSE),\"\")","v":""},null,null,null,null,{"$f":"IF(Z53<>\"\",RANK(Z53,Z$51:$Z$60,TRUE),\"\")","v":""},3,{"$f":"IF(I39>0,D36,\"\")","v":""},""]
[null,null,null,null,2,null,{"$f":"IFERROR(VLOOKUP(2,ordre_des_tours_p5,3,FALSE),\"\")","v":""},null,null,null,null,null,null,null,null,2,null,{"$f":"IFERROR(VLOOKUP(2,ordre_des_tours_p6,3,FALSE),\"\")","v":""},null,null,null,null,{"$f":"IF(Z54<>\"\",RANK(Z54,Z$51:$Z$60,TRUE),\"\")","v":""},4,{"$f":"IF(I44>0,D41,\"\")","v":""},""]
[null,null,null,null,3,null,{"$f":"IFERROR(VLOOKUP(3,ordre_des_tours_p5,3,FALSE),\"\")","v":""},null,null,null,null,null,null,null,null,3,null,{"$f":"IFERROR(VLOOKUP(3,ordre_des_tours_p6,3,FALSE),\"\")","v":""},null,null,null,null,{"$f":"IF(Z55<>\"\",RANK(Z55,Z$51:$Z$60,TRUE),\"\")","v":""},5,{"$f":"IF(I49>0,D46,\"\")","v":""},""]
[null,null,null,null,4,null,{"$f":"IFERROR(VLOOKUP(4,ordre_des_tours_p5,3,FALSE),\"\")","v":""},null,null,null,null,null,null,null,null,4,null,{"$f":"IFERROR(VLOOKUP(4,ordre_des_tours_p6,3,FALSE),\"\")","v":""},null,null,null,null,{"$f":"IF(Z56<>\"\",RANK(Z56,Z$51:$Z$60,TRUE),\"\")","v":""},6,{"$f":"IF(I29=0,D26,\"\")","v":""},""]
[null,null,null,null,5,null,{"$f":"IFERROR(VLOOKUP(5,ordre_des_tours_p5,3,FALSE),\"\")","v":""},null,null,null,null,null,null,null,null,5,null,{"$f":"IFERROR(VLOOKUP(5,ordre_des_tours_p6,3,FALSE),\"\")","v":""},null,null,null,null,{"$f":"IF(Z57<>\"\",RANK(Z57,Z$51:$Z$60,TRUE),\"\")","v":""},7,{"$f":"IF(I34=0,D31,\"\")","v":""},""]
[null,null,null,null,null,null,null,null,null,null,null,null,null,null,null,null,null,null,null,null,null,null,{"$f":"IF(Z58<>\"\",RANK(Z58,Z$51:$Z$60,TRUE),\"\")","v":""},8,{"$f":"IF(I39=0,D36,\"\")","v":""},""]
[null,null,null,null,null,null,null,null,null,null,null,null,null,null,null,null,null,null,null,null,null,null,{"$f":"IF(Z59<>\"\",RANK(Z59,Z$51:$Z$60,TRUE),\"\")","v":""},9,{"$f":"IF(I44=0,D41,\"\")","v":""},""]
[null,null,null,null,null,null,null,null,null,null,null,null,null,null,null,null,null,null,null,null,null,null,{"$f":"IF(Z60<>\"\",RANK(Z60,Z$51:$Z$60,TRUE),\"\")","v":""},10,{"$f":"IF(I49=0,D46,\"\")","v":""},""]
[]
[null,null,null,null,null,null,null,null,null,null,null,null,null,null,null,null,null,null,null,null,null,null,"Poule de 6 - Tours de jeu"]
[null,null,null,null,null,null,null,null,null,null,null,null,null,null,null,null,null,null,null,null,null,null,{"$f":"IF(Z63<>\"\",RANK(Z63,Z$63:$Z$72,TRUE),\"\")","v":""},1,{"$f":"IF(T28>0,M26,\"\")","v":""},{"$f":"IF(Y63<>\"\",X63,\"\")","v":""}]
[null,null,null,null,null,null,null,null,null,null,null,null,null,null,null,null,null,null,null,null,null,null,{"$f":"IF(Z64<>\"\",RANK(Z64,Z$63:$Z$72,TRUE),\"\")","v":""},2,{"$f":"IF(T33>0,M31,\"\")","v":""},{"$f":"IF(Y64<>\"\",X64,\"\")","v":""}]
[null,null,null,null,null,null,null,null,null,null,null,null,null,null,null,null,null,null,null,null,null,null,{"$f":"IF(Z65<>\"\",RANK(Z65,Z$63:$Z$72,TRUE),\"\")","v":""},3,{"$f":"IF(T38>0,M36,\"\")","v":""},""]
[null,null,null,null,null,null,null,null,null,null,null,null,null,null,null,null,null,null,null,null,null,null,{"$f":"IF(Z66<>\"\",RANK(Z66,Z$63:$Z$72,TRUE),\"\")","v":""},4,{"$f":"IF(T43>0,M41,\"\")","v":""},""]
[null,null,null,null,null,null,null,null,null,null,null,null,null,null,null,null,null,null,null,null,null,null,{"$f":"IF(Z67<>\"\",RANK(Z67,Z$63:$Z$72,TRUE),\"\")","v":""},5,{"$f":"IF(T48>0,M46,\"\")","v":""},""]
[null,null,null,null,null,null,null,null,null,null,null,null,null,null,null,null,null,null,null,null,null,null,{"$f":"IF(Z68<>\"\",RANK(Z68,Z$63:$Z$72,TRUE),\"\")","v":""},6,{"$f":"IF(T28=0,M26,\"\")","v":""},""]
[null,null,null,null,null,null,null,null,null,null,null,null,null,null,null,null,null,null,null,null,null,null,{"$f":"IF(Z69<>\"\",RANK(Z69,Z$63:$Z$72,TRUE),\"\")","v":""},7,{"$f":"IF(T33=0,M31,\"\")","v":""},""]
[null,null,null,null,null,null,null,null,null,null,null,null,null,null,null,null,null,null,null,null,null,null,{"$f":"IF(Z70<>\"\",RANK(Z70,Z$63:$Z$72,TRUE),\"\")","v":""},8,{"$f":"IF(T38=0,M36,\"\")","v":""},""]
[null,null,null,null,null,null,null,null,null,null,null,null,null,null,null,null,null,null,null,null,null,null,{"$f":"IF(Z71<>\"\",RANK(Z71,Z$63:$Z$72,TRUE),\"\")","v":""},9,{"$f":"IF(T43=0,M41,\"\")","v":""},""]
[null,null,null,null,null,null,null,null,null,null,null,null,null,null,null,null,null,null,null,null,null,null,{"$f":"IF(Z72<>\"\",RANK(Z72,Z$63:$Z$72,TRUE),\"\")","v":""},10,{"$f":"IF(T48=0,M46,\"\")","v":""},""]

{"sheet":"Affiche_des_tours","index":4,"n_rows":33,"n_cols":4,"rows_kept":33,"cut":false,"hidden":true,"merged":[[32,0,32,3],[26,0,29,0],[2,1,2,3],[0,0,0,3],[6,0,9,0],[11,0,14,0],[16,0,19,0],[21,0,24,0]]}
[{"$error":"#VALUE!"}]
[]
[null,"TOURS DE JEU"]
[]
[null,"Billard 1","Billard 2","Billard 3"]
[]
["Tour n°1",{"$f":"'Tours de jeu'!N26","v":""},{"$f":"'Tours de jeu'!P26","v":""},{"$f":"'Tours de jeu'!R26","v":""}]
[null,"VS","VS","VS"]
[null,{"$f":"'Tours de jeu'!N28","v":""},{"$f":"'Tours de jeu'!P28","v":""},{"$f":"'Tours de jeu'!R28","v":""}]
[]
[]
["Tour n°2",{"$f":"'Tours de jeu'!N31","v":""},{"$f":"'Tours de jeu'!P31","v":""},{"$f":"'Tours de jeu'!R31","v":""}]
[null,"VS","VS","VS"]
[null,{"$f":"'Tours de jeu'!N33","v":""},{"$f":"'Tours de jeu'!P33","v":""},{"$f":"'Tours de jeu'!R33","v":""}]
[]
[]
["Tour n°3",{"$f":"'Tours de jeu'!N36","v":""},{"$f":"'Tours de jeu'!P36","v":""},{"$f":"'Tours de jeu'!R36","v":""}]
[null,"VS","VS","VS"]
[null,{"$f":"'Tours de jeu'!N38","v":""},{"$f":"'Tours de jeu'!P38","v":""},{"$f":"'Tours de jeu'!R38","v":""}]
[]
[]
["Tour n°4",{"$f":"'Tours de jeu'!N41","v":""},{"$f":"'Tours de jeu'!P41","v":""},{"$f":"'Tours de jeu'!R41","v":""}]
[null,"VS","VS","VS"]
[null,{"$f":"'Tours de jeu'!N43","v":""},{"$f":"'Tours de jeu'!P43","v":""},{"$f":"'Tours de jeu'!R43","v":""}]
[]
[]
["Tour n°5",{"$f":"'Tours de jeu'!N46","v":""},{"$f":"'Tours de jeu'!P46","v":""},{"$f":"'Tours de jeu'!R46","v":""}]
[null,"VS","VS","VS"]
[null,{"$f":"'Tours de jeu'!N48","v":""},{"$f":"'Tours de jeu'!P48","v":""},{"$f":"'Tours de jeu'!R48","v":""}]
[]
[]
[]
["Ce tableau est à renseigner (éventuellement) manuellement"]

{"sheet":"Saisie FFB","index":5,"n_rows":27,"n_cols":13,"rows_kept":27,"cut":false,"hidden":false,"merged":[[4,1,4,2],[4,3,4,7],[0,0,0,12],[2,1,2,2],[2,3,2,7],[3,1,3,2],[3,3,3,7],[1,11,3,12],[9,1,9,6],[9,7,9,12],[6,3,6,7],[26,7,27,7],[5,1,5,2],[5,3,5,7],[6,1,6,2],[7,3,7,7],[7,1,7,2]]}
["Tableau d'aide à la saisie des résultats sur les sites FFB"]
["Compétition",null,null,null,null,null,null,null,null,null,null,{"$error":"#VALUE!"}]
[null,"Lieu :   ",null,{"$f":"'Poule de 6'!H4","v":0}]
[null,"Date :   ",null,{"$f":"'Poule de 6'!O9","v":"2026-03-29"}]
[null,"Mode de jeu :   ",null,{"$f":"'Poule de 6'!W4","v":0}]
[null,"Catégorie :   ",null,{"$f":"'Poule de 6'!W5","v":0}]
[null,"Tour :   ",null,{"$f":"'Poule de 6'!W6","v":0}]
[null,"Format billard :   ",null,{"$f":"'Poule de 6'!W8","v":0}]
[]
[null,"Joueur 1",null,null,null,null,null,"Joueur 2"]
["N° match","Nom","Licence","Points","Reprises","Série","Points de\nmatch","Nom","Licence","Points","Reprises","Série","Points de\nmatch"]
[1,{"$f":"IF('Poule de 6'!B12<>\"\",'Poule de 6'!B12,\"\")","v":""},{"$f":"IFERROR(VLOOKUP(B12,ClubduJoueur,3,FALSE),\"\")","v":""},{"$f":"IF(j1r1<>\"\",j1r1,\"\")","v":""},{"$f":"IF(D12<>\"\",OFFSET(j1r1,0,2,1,1),\"\")","v":""},{"$f":"IF(D12<>\"\",OFFSET(j1r1,2,0,1,1),\"\")","v":""},{"$f":"IF(D12<>\"\",OFFSET(j1r1,1,1,1,1),\"\")","v":""},{"$f":"'Poule de 6'!F11","v":""},{"$f":"IFERROR(VLOOKUP(H12,ClubduJoueur,3,FALSE),\"\")","v":""},{"$f":"IF(j2r1<>\"\",j2r1,\"\")","v":""},{"$f":"IF(J12<>\"\",OFFSET(j2r1,0,2,1,1),\"\")","v":""},{"$f":"IF(J12<>\"\",OFFSET(j2r1,2,0,1,1),\"\")","v":""},{"$f":"IF(J12<>\"\",OFFSET(j2r1,1,1,1,1),\"\")","v":""}]
[2,{"$f":"IF('Poule de 6'!B12<>\"\",'Poule de 6'!B12,\"\")","v":""},"",{"$f":"IF(j1r2<>\"\",j1r2,\"\")","v":""},{"$f":"IF(D13<>\"\",OFFSET(j1r2,0,2,1,1),\"\")","v":""},{"$f":"IF(D13<>\"\",OFFSET(j1r2,2,0,1,1),\"\")","v":""},{"$f":"IF(D13<>\"\",OFFSET(j1r2,1,1,1,1),\"\")","v":""},{"$f":"'Poule de 6'!I11","v":""},"",{"$f":"IF(j3r1<>\"\",j3r1,\"\")","v":""},{"$f":"IF(J13<>\"\",OFFSET(j3r1,0,2,1,1),\"\")","v":""},{"$f":"IF(J13<>\"\",OFFSET(j3r1,2,0,1,1),\"\")","v":""},{"$f":"IF(J13<>\"\",OFFSET(j3r1,1,1,1,1),\"\")","v":""}]
[3,{"$f":"IF('Poule de 6'!B15<>\"\",'Poule de 6'!B15,\"\")","v":""},"",{"$f":"IF(j2r2<>\"\",j2r2,\"\")","v":""},{"$f":"IF(D14<>\"\",OFFSET(j2r2,0,2,1,1),\"\")","v":""},{"$f":"IF(D14<>\"\",OFFSET(j2r2,2,0,1,1),\"\")","v":""},{"$f":"IF(D14<>\"\",OFFSET(j2r2,1,1,1,1),\"\")","v":""},{"$f":"'Poule de 6'!I11","v":""},"",{"$f":"IF(j3r2<>\"\",j3r2,\"\")","v":""},{"$f":"IF(J14<>\"\",OFFSET(j3r2,0,2,1,1),\"\")","v":""},{"$f":"IF(J14<>\"\",OFFSET(j3r2,2,0,1,1),\"\")","v":""},{"$f":"IF(J14<>\"\",OFFSET(j3r2,1,1,1,1),\"\")","v":""}]
[4,{"$f":"IF('Poule de 6'!B21<>\"\",'Poule de 6'!B12,\"\")","v":""},"",{"$f":"IF(j1r3<>\"\",j1r3,\"\")","v":""},{"$f":"IF(D15<>\"\",OFFSET(j1r3,0,2,1,1),\"\")","v":""},{"$f":"IF(D15<>\"\",OFFSET(j1r3,2,0,1,1),\"\")","v":""},{"$f":"IF(D15<>\"\",OFFSET(j1r3,1,1,1,1),\"\")","v":""},{"$f":"IF('Poule de 6'!B21<>\"\",'Poule de 6'!B21,\"\")","v":""},"",{"$f":"IF(j4r1<>\"\",j4r1,\"\")","v":""},{"$f":"IF(J15<>\"\",OFFSET(j4r1,0,2,1,1),\"\")","v":""},{"$f":"IF(J15<>\"\",OFFSET(j4r1,2,0,1,1),\"\")","v":""},{"$f":"IF(J15<>\"\",OFFSET(j4r1,1,1,1,1),\"\")","v":""}]
[5,{"$f":"IF('Poule de 6'!B21<>\"\",'Poule de 6'!B15,\"\")","v":""},"",{"$f":"IF(j2r3<>\"\",j2r3,\"\")","v":""},{"$f":"IF(D16<>\"\",OFFSET(j2r3,0,2,1,1),\"\")","v":""},{"$f":"IF(D16<>\"\",OFFSET(j2r3,2,0,1,1),\"\")","v":""},{"$f":"IF(D16<>\"\",OFFSET(j2r3,1,1,1,1),\"\")","v":""},{"$f":"IF('Poule de 6'!B21<>\"\",'Poule de 6'!B21,\"\")","v":""},"",{"$f":"IF(j4r2<>\"\",j4r2,\"\")","v":""},{"$f":"IF(J16<>\"\",OFFSET(j4r2,0,2,1,1),\"\")","v":""},{"$f":"IF(J16<>\"\",OFFSET(j4r2,2,0,1,1),\"\")","v":""},{"$f":"IF(J16<>\"\",OFFSET(j4r2,1,1,1,1),\"\")","v":""}]
[6,{"$f":"IF('Poule de 6'!B21<>\"\",'Poule de 6'!B18,\"\")","v":""},"",{"$f":"IF(j3r3<>\"\",j3r3,\"\")","v":""},{"$f":"IF(D17<>\"\",OFFSET(j3r3,0,2,1,1),\"\")","v":""},{"$f":"IF(D17<>\"\",OFFSET(j3r3,2,0,1,1),\"\")","v":""},{"$f":"IF(D17<>\"\",OFFSET(j3r3,1,1,1,1),\"\")","v":""},{"$f":"IF('Poule de 6'!B21<>\"\",'Poule de 6'!B21,\"\")","v":""},"",{"$f":"IF(j4r3<>\"\",j4r3,\"\")","v":""},{"$f":"IF(J17<>\"\",OFFSET(j4r3,0,2,1,1),\"\")","v":""},{"$f":"IF(J17<>\"\",OFFSET(j4r3,2,0,1,1),\"\")","v":""},{"$f":"IF(J17<>\"\",OFFSET(j4r3,1,1,1,1),\"\")","v":""}]
[7,{"$f":"IF('Poule de 6'!B24<>\"\",'Poule de 6'!B12,\"\")","v":""},"",{"$f":"IF(j1r4<>\"\",j1r4,\"\")","v":""},{"$f":"IF(D18<>\"\",OFFSET(j1r4,0,2,1,1),\"\")","v":""},{"$f":"IF(D18<>\"\",OFFSET(j1r4,2,0,1,1),\"\")","v":""},{"$f":"IF(D18<>\"\",OFFSET(j1r4,1,1,1,1),\"\")","v":""},{"$f":"IF('Poule de 6'!B24<>\"\",'Poule de 6'!B24,\"\")","v":""},"",{"$f":"IF(j5r1<>\"\",j5r1,\"\")","v":""},{"$f":"IF(J18<>\"\",OFFSET(j5r1,0,2,1,1),\"\")","v":""},{"$f":"IF(J18<>\"\",OFFSET(j5r1,2,0,1,1),\"\")","v":""},{"$f":"IF(J18<>\"\",OFFSET(j5r1,1,1,1,1),\"\")","v":""}]
[8,{"$f":"IF('Poule de 6'!B24<>\"\",'Poule de 6'!B15,\"\")","v":""},"",{"$f":"IF(j2r4<>\"\",j2r4,\"\")","v":""},{"$f":"IF(D19<>\"\",OFFSET(j2r4,0,2,1,1),\"\")","v":""},{"$f":"IF(D19<>\"\",OFFSET(j2r4,2,0,1,1),\"\")","v":""},{"$f":"IF(D19<>\"\",OFFSET(j2r4,1,1,1,1),\"\")","v":""},{"$f":"IF('Poule de 6'!B24<>\"\",'Poule de 6'!B24,\"\")","v":""},"",{"$f":"IF(j5r2<>\"\",j5r2,\"\")","v":""},{"$f":"IF(J19<>\"\",OFFSET(j5r2,0,2,1,1),\"\")","v":""},{"$f":"IF(J19<>\"\",OFFSET(j5r2,2,0,1,1),\"\")","v":""},{"$f":"IF(J19<>\"\",OFFSET(j5r2,1,1,1,1),\"\")","v":""}]
[9,{"$f":"IF('Poule de 6'!B24<>\"\",'Poule de 6'!B18,\"\")","v":""},"",{"$f":"IF(j3r4<>\"\",j3r4,\"\")","v":""},{"$f":"IF(D20<>\"\",OFFSET(j3r4,0,2,1,1),\"\")","v":""},{"$f":"IF(D20<>\"\",OFFSET(j3r4,2,0,1,1),\"\")","v":""},{"$f":"IF(D20<>\"\",OFFSET(j3r4,1,1,1,1),\"\")","v":""},{"$f":"IF('Poule de 6'!B24<>\"\",'Poule de 6'!B24,\"\")","v":""},"",{"$f":"IF(j5r3<>\"\",j5r3,\"\")","v":""},{"$f":"IF(J20<>\"\",OFFSET(j5r3,0,2,1,1),\"\")","v":""},{"$f":"IF(J20<>\"\",OFFSET(j5r3,2,0,1,1),\"\")","v":""},{"$f":"IF(J20<>\"\",OFFSET(j5r3,1,1,1,1),\"\")","v":""}]
[10,{"$f":"IF('Poule de 6'!B24<>\"\",'Poule de 6'!B21,\"\")","v":""},"",{"$f":"IF(j4r4<>\"\",j4r4,\"\")","v":""},{"$f":"IF(D21<>\"\",OFFSET(j4r4,0,2,1,1),\"\")","v":""},{"$f":"IF(D21<>\"\",OFFSET(j4r4,2,0,1,1),\"\")","v":""},{"$f":"IF(D21<>\"\",OFFSET(j4r4,1,1,1,1),\"\")","v":""},{"$f":"IF('Poule de 6'!B24<>\"\",'Poule de 6'!B24,\"\")","v":""},"",{"$f":"IF(j5r4<>\"\",j5r4,\"\")","v":""},{"$f":"IF(J21<>\"\",OFFSET(j5r4,0,2,1,1),\"\")","v":""},{"$f":"IF(J21<>\"\",OFFSET(j5r4,2,0,1,1),\"\")","v":""},{"$f":"IF(J21<>\"\",OFFSET(j5r4,1,1,1,1),\"\")","v":""}]
[11,{"$f":"IF('Poule de 6'!B27<>\"\",'Poule de 6'!B12,\"\")","v":""},"",{"$f":"IF(j1r5<>\"\",j1r5,\"\")","v":""},{"$f":"IF(D22<>\"\",OFFSET(j1r5,0,2,1,1),\"\")","v":""},{"$f":"IF(D22<>\"\",OFFSET(j1r5,2,0,1,1),\"\")","v":""},{"$f":"IF(D22<>\"\",OFFSET(j1r5,1,1,1,1),\"\")","v":""},{"$f":"IF('Poule de 6'!B27<>\"\",'Poule de 6'!B27,\"\")","v":""},"",{"$f":"IF(j6r1<>\"\",j6r1,\"\")","v":""},{"$f":"IF(J22<>\"\",OFFSET(j6r1,0,2,1,1),\"\")","v":""},{"$f":"IF(J22<>\"\",OFFSET(j6r1,2,0,1,1),\"\")","v":""},{"$f":"IF(J22<>\"\",OFFSET(j6r1,1,1,1,1),\"\")","v":""}]
[12,{"$f":"IF('Poule de 6'!B27<>\"\",'Poule de 6'!B15,\"\")","v":""},"",{"$f":"IF(j2r5<>\"\",j2r5,\"\")","v":""},{"$f":"IF(D23<>\"\",OFFSET(j2r5,0,2,1,1),\"\")","v":""},{"$f":"IF(D23<>\"\",OFFSET(j2r5,2,0,1,1),\"\")","v":""},{"$f":"IF(D23<>\"\",OFFSET(j2r5,1,1,1,1),\"\")","v":""},{"$f":"IF('Poule de 6'!B27<>\"\",'Poule de 6'!B27,\"\")","v":""},"",{"$f":"IF(j6r2<>\"\",j6r2,\"\")","v":""},{"$f":"IF(J23<>\"\",OFFSET(j6r2,0,2,1,1),\"\")","v":""},{"$f":"IF(J23<>\"\",OFFSET(j6r2,2,0,1,1),\"\")","v":""},{"$f":"IF(J23<>\"\",OFFSET(j6r2,1,1,1,1),\"\")","v":""}]
[13,{"$f":"IF('Poule de 6'!B27<>\"\",'Poule de 6'!B18,\"\")","v":""},"",{"$f":"IF(j3r5<>\"\",j3r5,\"\")","v":""},{"$f":"IF(D24<>\"\",OFFSET(j3r5,0,2,1,1),\"\")","v":""},{"$f":"IF(D24<>\"\",OFFSET(j3r5,2,0,1,1),\"\")","v":""},{"$f":"IF(D24<>\"\",OFFSET(j3r5,1,1,1,1),\"\")","v":""},{"$f":"IF('Poule de 6'!B27<>\"\",'Poule de 6'!B27,\"\")","v":""},"",{"$f":"IF(j6r3<>\"\",j6r3,\"\")","v":""},{"$f":"IF(J24<>\"\",OFFSET(j6r3,0,2,1,1),\"\")","v":""},{"$f":"IF(J24<>\"\",OFFSET(j6r3,2,0,1,1),\"\")","v":""},{"$f":"IF(J24<>\"\",OFFSET(j6r3,1,1,1,1),\"\")","v":""}]
[14,{"$f":"IF('Poule de 6'!B27<>\"\",'Poule de 6'!B21,\"\")","v":""},"",{"$f":"IF(j4r5<>\"\",j4r5,\"\")","v":""},{"$f":"IF(D25<>\"\",OFFSET(j4r5,0,2,1,1),\"\")","v":""},{"$f":"IF(D25<>\"\",OFFSET(j4r5,2,0,1,1),\"\")","v":""},{"$f":"IF(D25<>\"\",OFFSET(j4r5,1,1,1,1),\"\")","v":""},{"$f":"IF('Poule de 6'!B27<>\"\",'Poule de 6'!B27,\"\")","v":""},"",{"$f":"IF(j6r4<>\"\",j6r4,\"\")","v":""},{"$f":"IF(J25<>\"\",OFFSET(j6r4,0,2,1,1),\"\")","v":""},{"$f":"IF(J25<>\"\",OFFSET(j6r4,2,0,1,1),\"\")","v":""},{"$f":"IF(J25<>\"\",OFFSET(j6r4,1,1,1,1),\"\")","v":""}]
[15,{"$f":"IF('Poule de 6'!B27<>\"\",'Poule de 6'!B24,\"\")","v":""},"",{"$f":"IF(j5r5<>\"\",j5r5,\"\")","v":""},{"$f":"IF(D26<>\"\",OFFSET(j5r5,0,2,1,1),\"\")","v":""},{"$f":"IF(D26<>\"\",OFFSET(j5r5,2,0,1,1),\"\")","v":""},{"$f":"IF(D26<>\"\",OFFSET(j5r5,1,1,1,1),\"\")","v":""},{"$f":"IF('Poule de 6'!B27<>\"\",'Poule de 6'!B27,\"\")","v":""},"",{"$f":"IF(j6r5<>\"\",j6r5,\"\")","v":""},{"$f":"IF(J26<>\"\",OFFSET(j6r5,0,2,1,1),\"\")","v":""},{"$f":"IF(J26<>\"\",OFFSET(j6r5,2,0,1,1),\"\")","v":""},{"$f":"IF(J26<>\"\",OFFSET(j6r5,1,1,1,1),\"\")","v":""}]
["Les données en bleu sont à saisir"]